Workbook

Sheet DataFiltering
A1: Month | B1: Date | C1: Number | D1: Due Date | E1: Customer | F1: Deposits | G1: Payments | H1: Balance | I1: Status | J1: Due
I2: Not Due | J2: Hold
I3: Payment | J3: Hold
G8: =SUM(G10:G9997) -> 0
A9: Month | B9: Date | C9: Number | D9: Due Date | E9: Customer | F9: Deposits | G9: Payments | H9: Balance | I9: Status | J9: Due

Sheet CIB
D1: Current | E1: Box Hold | F1: Payment | G1: Signature | H1: ALL | I1: EXPECTING PAY | J1: Filter View | K1: =UPPER(TEXT(TD,"MMM")) -> أكتوبر | O1: Current | P1: الحالي بعد خصمه من البنك
E2: =-SUMIFS(H$11:H4382,J$11:J4382,$E$1) -> -459047.5 | F2: =-SUMIFS(H$11:H4382,J$11:J4382,$F$1) -> -116107.85 | G2: =-SUMIFS(H$11:H4382,J$11:J4382,$G$1) -> 0 | I2: Next 7 Days | J2: =SUBTOTAL(9,L$11:L4382) -> -2045877.449 | O2: Payment | P2: مدفوع ولم يحصل من البنك
D3: =SUMIFS(L$11:L4382,J$11:J4382,$D$1) -> 1568292.431 | E3: Hold Bank | F3: Not Due | G3: =+TD+7 -> 2022-10-24 | H3: =SUM(L$11:L4382) -> -2045877.449 | I3: =SUMIFS(L$11:L4382,E$11:E4382,">"&(TD+7)) -> -1660038.35 | J3: Book to day | K3: =TODAY() -> 2022-10-17 | O3: Box Hold | P3: الشيكات في الخزنة
B4: Bank CIB | E4: =SUMIFS(G$11:G4382,J$11:J4382,$E$3) -> 1762217.52 | F4: =-SUMIFS(H$11:H4382,J$11:J4382,$F$3) -> -4801232.05 | G4: =SUMIFS(L$11:L4382,E$11:E4382,"<="&$G$3) -> -385839.099 | I4: Next 15 Days | J4: =SUMIFS(L$11:L4382,E$11:E4382,"<="&TD) -> 2335900.061 | O4: Signature | P4: شيكات في التوقيع
D5: AMOUNT | E5: AMOUNT | F5: AMOUNT | G5: AMOUNT | H5: AMOUNT | I5: =SUMIFS(L$11:L4382,E$11:E4382,">"&(TD+15)) -> -288272.4 | J5: AMOUNT | O5: Hold Bank | P5: شيكات تحت التحصيل
O6: Not Due | P6: معلقة بدون تاريخ
B10: Month | C10: Date | D10: Number | E10: Due Date | F10: Customer | G10: Deposits | H10: Payments | I10: Balance | J10: Status | K10: Due | L10: Out | M10: S
B11: =TEXT(CIB[[#This Row],[Date]],"mmm-yyyy") -> ديسمبر-2021 | C11: =IF(+CIB[[#This Row],[Due Date]]<=1/1/1900,"",+CIB[[#This Row],[Due Date]]) -> 2021-12-31 | D11: رصيد | E11: 2021-12-31 | F11: رصيد البنك اون لاين | G11: 4482721.54 | I11: =+CIB[[#This Row],[Deposits]]-CIB[[#This Row],[Payments]] -> 4482721.54 | J11: Current | K11: =+IF(CIB[[#This Row],[Due Date]]>TD,"Hold","") ->  | L11: =IFERROR(CIB[[#This Row],[Deposits]]-CIB[[#This Row],[Payments]],"") -> 4482721.54 | M11: =IFERROR(IF(_xlfn.AGGREGATE(3,5,CIB[[#This Row],[Out]])=1,1,0),"") -> 1
B12: =TEXT(CIB[[#This Row],[Date]],"mmm-yyyy") -> يناير-2022 | C12: =IF(+CIB[[#This Row],[Due Date]]<=1/1/1900,"",+CIB[[#This Row],[Due Date]]) -> 2022-01-01 | D12: 1 | E12: 2022-01-01 | F12: 1 | H12: 11600 | I12: =+I11+CIB[[#This Row],[Deposits]]-CIB[[#This Row],[Payments]] -> 4471121.54 | J12: Current | K12: =+IF(CIB[[#This Row],[Due Date]]>TD,"Hold","") ->  | L12: =IFERROR(CIB[[#This Row],[Deposits]]-CIB[[#This Row],[Payments]],"") -> -11600 | M12: =IFERROR(IF(_xlfn.AGGREGATE(3,5,CIB[[#This Row],[Out]])=1,1,0),"") -> 1
B13: =TEXT(CIB[[#This Row],[Date]],"mmm-yyyy") -> فبراير-2022 | C13: =IF(+CIB[[#This Row],[Due Date]]<=1/1/1900,"",+CIB[[#This Row],[Due Date]]) -> 2022-02-01 | D13: 2 | E13: 2022-02-01 | F13: 2 | H13: 11600 | I13: =+I12+CIB[[#This Row],[Deposits]]-CIB[[#This Row],[Payments]] -> 4459521.54 | J13: Current | K13: =+IF(CIB[[#This Row],[Due Date]]>TD,"Hold","") ->  | L13: =IFERROR(CIB[[#This Row],[Deposits]]-CIB[[#This Row],[Payments]],"") -> -11600 | M13: =IFERROR(IF(_xlfn.AGGREGATE(3,5,CIB[[#This Row],[Out]])=1,1,0),"") -> 1
B14: =TEXT(CIB[[#This Row],[Date]],"mmm-yyyy") -> مارس-2022 | C14: =IF(+CIB[[#This Row],[Due Date]]<=1/1/1900,"",+CIB[[#This Row],[Due Date]]) -> 2022-03-01 | D14: 3 | E14: 2022-03-01 | F14: 3 | H14: 11600 | I14: =+I13+CIB[[#This Row],[Deposits]]-CIB[[#This Row],[Payments]] -> 4447921.54 | J14: Current | K14: =+IF(CIB[[#This Row],[Due Date]]>TD,"Hold","") ->  | L14: =IFERROR(CIB[[#This Row],[Deposits]]-CIB[[#This Row],[Payments]],"") -> -11600 | M14: =IFERROR(IF(_xlfn.AGGREGATE(3,5,CIB[[#This Row],[Out]])=1,1,0),"") -> 1
B15: =TEXT(CIB[[#This Row],[Date]],"mmm-yyyy") -> أبريل-2022 | C15: =IF(+CIB[[#This Row],[Due Date]]<=1/1/1900,"",+CIB[[#This Row],[Due Date]]) -> 2022-04-01 | D15: 4 | E15: 2022-04-01 | F15: 4 | H15: 11600 | I15: =+I14+CIB[[#This Row],[Deposits]]-CIB[[#This Row],[Payments]] -> 4436321.54 | J15: Current | K15: =+IF(CIB[[#This Row],[Due Date]]>TD,"Hold","") ->  | L15: =IFERROR(CIB[[#This Row],[Deposits]]-CIB[[#This Row],[Payments]],"") -> -11600 | M15: =IFERROR(IF(_xlfn.AGGREGATE(3,5,CIB[[#This Row],[Out]])=1,1,0),"") -> 1
B16: =TEXT(CIB[[#This Row],[Date]],"mmm-yyyy") -> مايو-2022 | C16: =IF(+CIB[[#This Row],[Due Date]]<=1/1/1900,"",+CIB[[#This Row],[Due Date]]) -> 2022-05-01 | D16: 5 | E16: 2022-05-01 | F16: 5 | H16: 11600 | I16: =+I15+CIB[[#This Row],[Deposits]]-CIB[[#This Row],[Payments]] -> 4424721.54 | J16: Current | K16: =+IF(CIB[[#This Row],[Due Date]]>TD,"Hold","") ->  | L16: =IFERROR(CIB[[#This Row],[Deposits]]-CIB[[#This Row],[Payments]],"") -> -11600 | M16: =IFERROR(IF(_xlfn.AGGREGATE(3,5,CIB[[#This Row],[Out]])=1,1,0),"") -> 1
B17: =TEXT(CIB[[#This Row],[Date]],"mmm-yyyy") -> يونيو-2022 | C17: =IF(+CIB[[#This Row],[Due Date]]<=1/1/1900,"",+CIB[[#This Row],[Due Date]]) -> 2022-06-01 | D17: 6 | E17: 2022-06-01 | F17: 6 | H17: 11648 | I17: =+I16+CIB[[#This Row],[Deposits]]-CIB[[#This Row],[Payments]] -> 4413073.54 | J17: Current | K17: =+IF(CIB[[#This Row],[Due Date]]>TD,"Hold","") ->  | L17: =IFERROR(CIB[[#This Row],[Deposits]]-CIB[[#This Row],[Payments]],"") -> -11648 | M17: =IFERROR(IF(_xlfn.AGGREGATE(3,5,CIB[[#This Row],[Out]])=1,1,0),"") -> 1
B18: =TEXT(CIB[[#This Row],[Date]],"mmm-yyyy") -> يناير-2022 | C18: =IF(+CIB[[#This Row],[Due Date]]<=1/1/1900,"",+CIB[[#This Row],[Due Date]]) -> 2022-01-20 | D18: 7 | E18: 2022-01-20 | F18: 7 | H18: 9613.05 | I18: =+I17+CIB[[#This Row],[Deposits]]-CIB[[#This Row],[Payments]] -> 4403460.49 | J18: Current | K18: =+IF(CIB[[#This Row],[Due Date]]>TD,"Hold","") ->  | L18: =IFERROR(CIB[[#This Row],[Deposits]]-CIB[[#This Row],[Payments]],"") -> -9613.05 | M18: =IFERROR(IF(_xlfn.AGGREGATE(3,5,CIB[[#This Row],[Out]])=1,1,0),"") -> 1
B19: =TEXT(CIB[[#This Row],[Date]],"mmm-yyyy") -> فبراير-2022 | C19: =IF(+CIB[[#This Row],[Due Date]]<=1/1/1900,"",+CIB[[#This Row],[Due Date]]) -> 2022-02-20 | D19: 8 | E19: 2022-02-20 | F19: 8 | H19: 9613.05 | I19: =+I18+CIB[[#This Row],[Deposits]]-CIB[[#This Row],[Payments]] -> 4393847.44 | J19: Current | K19: =+IF(CIB[[#This Row],[Due Date]]>TD,"Hold","") ->  | L19: =IFERROR(CIB[[#This Row],[Deposits]]-CIB[[#This Row],[Payments]],"") -> -9613.05 | M19: =IFERROR(IF(_xlfn.AGGREGATE(3,5,CIB[[#This Row],[Out]])=1,1,0),"") -> 1
B20: =TEXT(CIB[[#This Row],[Date]],"mmm-yyyy") -> مارس-2022 | C20: =IF(+CIB[[#This Row],[Due Date]]<=1/1/1900,"",+CIB[[#This Row],[Due Date]]) -> 2022-03-20 | D20: 9 | E20: 2022-03-20 | F20: 9 | H20: 9613.05 | I20: =+I19+CIB[[#This Row],[Deposits]]-CIB[[#This Row],[Payments]] -> 4384234.39 | J20: Current | K20: =+IF(CIB[[#This Row],[Due Date]]>TD,"Hold","") ->  | L20: =IFERROR(CIB[[#This Row],[Deposits]]-CIB[[#This Row],[Payments]],"") -> -9613.05 | M20: =IFERROR(IF(_xlfn.AGGREGATE(3,5,CIB[[#This Row],[Out]])=1,1,0),"") -> 1
B21: =TEXT(CIB[[#This Row],[Date]],"mmm-yyyy") -> أبريل-2022 | C21: =IF(+CIB[[#This Row],[Due Date]]<=1/1/1900,"",+CIB[[#This Row],[Due Date]]) -> 2022-04-20 | D21: 10 | E21: 2022-04-20 | F21: 10 | H21: 9613.05 | I21: =+I20+CIB[[#This Row],[Deposits]]-CIB[[#This Row],[Payments]] -> 4374621.34 | J21: Current | K21: =+IF(CIB[[#This Row],[Due Date]]>TD,"Hold","") ->  | L21: =IFERROR(CIB[[#This Row],[Deposits]]-CIB[[#This Row],[Payments]],"") -> -9613.05 | M21: =IFERROR(IF(_xlfn.AGGREGATE(3,5,CIB[[#This Row],[Out]])=1,1,0),"") -> 1
B22: =TEXT(CIB[[#This Row],[Date]],"mmm-yyyy") -> مايو-2022 | C22: =IF(+CIB[[#This Row],[Due Date]]<=1/1/1900,"",+CIB[[#This Row],[Due Date]]) -> 2022-05-20 | D22: 11 | E22: 2022-05-20 | F22: 11 | H22: 9613.05 | I22: =+I21+CIB[[#This Row],[Deposits]]-CIB[[#This Row],[Payments]] -> 4365008.29 | J22: Current | K22: =+IF(CIB[[#This Row],[Due Date]]>TD,"Hold","") ->  | L22: =IFERROR(CIB[[#This Row],[Deposits]]-CIB[[#This Row],[Payments]],"") -> -9613.05 | M22: =IFERROR(IF(_xlfn.AGGREGATE(3,5,CIB[[#This Row],[Out]])=1,1,0),"") -> 1
B23: =TEXT(CIB[[#This Row],[Date]],"mmm-yyyy") -> يونيو-2022 | C23: =IF(+CIB[[#This Row],[Due Date]]<=1/1/1900,"",+CIB[[#This Row],[Due Date]]) -> 2022-06-20 | D23: 12 | E23: 2022-06-20 | F23: 12 | H23: 9613.05 | I23: =+I22+CIB[[#This Row],[Deposits]]-CIB[[#This Row],[Payments]] -> 4355395.24 | J23: Current | K23: =+IF(CIB[[#This Row],[Due Date]]>TD,"Hold","") ->  | L23: =IFERROR(CIB[[#This Row],[Deposits]]-CIB[[#This Row],[Payments]],"") -> -9613.05 | M23: =IFERROR(IF(_xlfn.AGGREGATE(3,5,CIB[[#This Row],[Out]])=1,1,0),"") -> 1
B24: =TEXT(CIB[[#This Row],[Date]],"mmm-yyyy") -> يوليو-2022 | C24: =IF(+CIB[[#This Row],[Due Date]]<=1/1/1900,"",+CIB[[#This Row],[Due Date]]) -> 2022-07-20 | D24: 13 | E24: 2022-07-20 | F24: 13 | H24: 9613.05 | I24: =+I23+CIB[[#This Row],[Deposits]]-CIB[[#This Row],[Payments]] -> 4345782.19 | J24: Current | K24: =+IF(CIB[[#This Row],[Due Date]]>TD,"Hold","") ->  | L24: =IFERROR(CIB[[#This Row],[Deposits]]-CIB[[#This Row],[Payments]],"") -> -9613.05 | M24: =IFERROR(IF(_xlfn.AGGREGATE(3,5,CIB[[#This Row],[Out]])=1,1,0),"") -> 1
B25: =TEXT(CIB[[#This Row],[Date]],"mmm-yyyy") -> أغسطس-2022 | C25: =IF(+CIB[[#This Row],[Due Date]]<=1/1/1900,"",+CIB[[#This Row],[Due Date]]) -> 2022-08-20 | D25: 14 | E25: 2022-08-20 | F25: 14 | H25: 9613.05 | I25: =+I24+CIB[[#This Row],[Deposits]]-CIB[[#This Row],[Payments]] -> 4336169.14 | J25: Current | K25: =+IF(CIB[[#This Row],[Due Date]]>TD,"Hold","") ->  | L25: =IFERROR(CIB[[#This Row],[Deposits]]-CIB[[#This Row],[Payments]],"") -> -9613.05 | M25: =IFERROR(IF(_xlfn.AGGREGATE(3,5,CIB[[#This Row],[Out]])=1,1,0),"") -> 1
B26: =TEXT(CIB[[#This Row],[Date]],"mmm-yyyy") -> سبتمبر-2022 | C26: =IF(+CIB[[#This Row],[Due Date]]<=1/1/1900,"",+CIB[[#This Row],[Due Date]]) -> 2022-09-20 | D26: 15 | E26: 2022-09-20 | F26: 15 | H26: 9613.05 | I26: =+I25+CIB[[#This Row],[Deposits]]-CIB[[#This Row],[Payments]] -> 4326556.09 | J26: Current | K26: =+IF(CIB[[#This Row],[Due Date]]>TD,"Hold","") ->  | L26: =IFERROR(CIB[[#This Row],[Deposits]]-CIB[[#This Row],[Payments]],"") -> -9613.05 | M26: =IFERROR(IF(_xlfn.AGGREGATE(3,5,CIB[[#This Row],[Out]])=1,1,0),"") -> 1
B27: =TEXT(CIB[[#This Row],[Date]],"mmm-yyyy") -> أكتوبر-2022 | C27: =IF(+CIB[[#This Row],[Due Date]]<=1/1/1900,"",+CIB[[#This Row],[Due Date]]) -> 2022-10-20 | D27: 16 | E27: 2022-10-20 | F27: 16 | H27: 9613.05 | I27: =+I26+CIB[[#This Row],[Deposits]]-CIB[[#This Row],[Payments]] -> 4316943.04 | J27: Not Due | K27: =+IF(CIB[[#This Row],[Due Date]]>TD,"Hold","") -> Hold | L27: =IFERROR(CIB[[#This Row],[Deposits]]-CIB[[#This Row],[Payments]],"") -> -9613.05 | M27: =IFERROR(IF(_xlfn.AGGREGATE(3,5,CIB[[#This Row],[Out]])=1,1,0),"") -> 1
B28: =TEXT(CIB[[#This Row],[Date]],"mmm-yyyy") -> نوفمبر-2022 | C28: =IF(+CIB[[#This Row],[Due Date]]<=1/1/1900,"",+CIB[[#This Row],[Due Date]]) -> 2022-11-20 | D28: 17 | E28: 2022-11-20 | F28: 17 | H28: 9613.05 | I28: =+I27+CIB[[#This Row],[Deposits]]-CIB[[#This Row],[Payments]] -> 4307329.99 | J28: Not Due | K28: =+IF(CIB[[#This Row],[Due Date]]>TD,"Hold","") -> Hold | L28: =IFERROR(CIB[[#This Row],[Deposits]]-CIB[[#This Row],[Payments]],"") -> -9613.05 | M28: =IFERROR(IF(_xlfn.AGGREGATE(3,5,CIB[[#This Row],[Out]])=1,1,0),"") -> 1
B29: =TEXT(CIB[[#This Row],[Date]],"mmm-yyyy") -> ديسمبر-2022 | C29: =IF(+CIB[[#This Row],[Due Date]]<=1/1/1900,"",+CIB[[#This Row],[Due Date]]) -> 2022-12-20 | D29: 18 | E29: 2022-12-20 | F29: 18 | H29: 9613.05 | I29: =+I28+CIB[[#This Row],[Deposits]]-CIB[[#This Row],[Payments]] -> 4297716.94 | J29: Not Due | K29: =+IF(CIB[[#This Row],[Due Date]]>TD,"Hold","") -> Hold | L29: =IFERROR(CIB[[#This Row],[Deposits]]-CIB[[#This Row],[Payments]],"") -> -9613.05 | M29: =IFERROR(IF(_xlfn.AGGREGATE(3,5,CIB[[#This Row],[Out]])=1,1,0),"") -> 1
B30: =TEXT(CIB[[#This Row],[Date]],"mmm-yyyy") -> يناير-2023 | C30: =IF(+CIB[[#This Row],[Due Date]]<=1/1/1900,"",+CIB[[#This Row],[Due Date]]) -> 2023-01-20 | D30: 19 | E30: 2023-01-20 | F30: 19 | H30: 9613.05 | I30: =+I29+CIB[[#This Row],[Deposits]]-CIB[[#This Row],[Payments]] -> 4288103.89 | J30: Not Due | K30: =+IF(CIB[[#This Row],[Due Date]]>TD,"Hold","") -> Hold | L30: =IFERROR(CIB[[#This Row],[Deposits]]-CIB[[#This Row],[Payments]],"") -> -9613.05 | M30: =IFERROR(IF(_xlfn.AGGREGATE(3,5,CIB[[#This Row],[Out]])=1,1,0),"") -> 1
B31: =TEXT(CIB[[#This Row],[Date]],"mmm-yyyy") -> فبراير-2023 | C31: =IF(+CIB[[#This Row],[Due Date]]<=1/1/1900,"",+CIB[[#This Row],[Due Date]]) -> 2023-02-20 | D31: 20 | E31: 2023-02-20 | F31: 20 | H31: 9613.05 | I31: =+I30+CIB[[#This Row],[Deposits]]-CIB[[#This Row],[Payments]] -> 4278490.84 | J31: Not Due | K31: =+IF(CIB[[#This Row],[Due Date]]>TD,"Hold","") -> Hold | L31: =IFERROR(CIB[[#This Row],[Deposits]]-CIB[[#This Row],[Payments]],"") -> -9613.05 | M31: =IFERROR(IF(_xlfn.AGGREGATE(3,5,CIB[[#This Row],[Out]])=1,1,0),"") -> 1
B32: =TEXT(CIB[[#This Row],[Date]],"mmm-yyyy") -> مارس-2023 | C32: =IF(+CIB[[#This Row],[Due Date]]<=1/1/1900,"",+CIB[[#This Row],[Due Date]]) -> 2023-03-20 | D32: 21 | E32: 2023-03-20 | F32: 21 | H32: 9613.05 | I32: =+I31+CIB[[#This Row],[Deposits]]-CIB[[#This Row],[Payments]] -> 4268877.79 | J32: Not Due | K32: =+IF(CIB[[#This Row],[Due Date]]>TD,"Hold","") -> Hold | L32: =IFERROR(CIB[[#This Row],[Deposits]]-CIB[[#This Row],[Payments]],"") -> -9613.05 | M32: =IFERROR(IF(_xlfn.AGGREGATE(3,5,CIB[[#This Row],[Out]])=1,1,0),"") -> 1
B33: =TEXT(CIB[[#This Row],[Date]],"mmm-yyyy") -> أبريل-2023 | C33: =IF(+CIB[[#This Row],[Due Date]]<=1/1/1900,"",+CIB[[#This Row],[Due Date]]) -> 2023-04-20 | D33: 22 | E33: 2023-04-20 | F33: 22 | H33: 9613.05 | I33: =+I32+CIB[[#This Row],[Deposits]]-CIB[[#This Row],[Payments]] -> 4259264.74 | J33: Not Due | K33: =+IF(CIB[[#This Row],[Due Date]]>TD,"Hold","") -> Hold | L33: =IFERROR(CIB[[#This Row],[Deposits]]-CIB[[#This Row],[Payments]],"") -> -9613.05 | M33: =IFERROR(IF(_xlfn.AGGREGATE(3,5,CIB[[#This Row],[Out]])=1,1,0),"") -> 1
B34: =TEXT(CIB[[#This Row],[Date]],"mmm-yyyy") -> مايو-2023 | C34: =IF(+CIB[[#This Row],[Due Date]]<=1/1/1900,"",+CIB[[#This Row],[Due Date]]) -> 2023-05-20 | D34: 23 | E34: 2023-05-20 | F34: 23 | H34: 9613.05 | I34: =+I33+CIB[[#This Row],[Deposits]]-CIB[[#This Row],[Payments]] -> 4249651.69 | J34: Not Due | K34: =+IF(CIB[[#This Row],[Due Date]]>TD,"Hold","") -> Hold | L34: =IFERROR(CIB[[#This Row],[Deposits]]-CIB[[#This Row],[Payments]],"") -> -9613.05 | M34: =IFERROR(IF(_xlfn.AGGREGATE(3,5,CIB[[#This Row],[Out]])=1,1,0),"") -> 1
B35: =TEXT(CIB[[#This Row],[Date]],"mmm-yyyy") -> يونيو-2023 | C35: =IF(+CIB[[#This Row],[Due Date]]<=1/1/1900,"",+CIB[[#This Row],[Due Date]]) -> 2023-06-20 | D35: 24 | E35: 2023-06-20 | F35: 24 | H35: 9613.05 | I35: =+I34+CIB[[#This Row],[Deposits]]-CIB[[#This Row],[Payments]] -> 4240038.64 | J35: Not Due | K35: =+IF(CIB[[#This Row],[Due Date]]>TD,"Hold","") -> Hold | L35: =IFERROR(CIB[[#This Row],[Deposits]]-CIB[[#This Row],[Payments]],"") -> -9613.05 | M35: =IFERROR(IF(_xlfn.AGGREGATE(3,5,CIB[[#This Row],[Out]])=1,1,0),"") -> 1
B36: =TEXT(CIB[[#This Row],[Date]],"mmm-yyyy") -> يوليو-2023 | C36: =IF(+CIB[[#This Row],[Due Date]]<=1/1/1900,"",+CIB[[#This Row],[Due Date]]) -> 2023-07-20 | D36: 25 | E36: 2023-07-20 | F36: 25 | H36: 9613.05 | I36: =+I35+CIB[[#This Row],[Deposits]]-CIB[[#This Row],[Payments]] -> 4230425.59 | J36: Not Due | K36: =+IF(CIB[[#This Row],[Due Date]]>TD,"Hold","") -> Hold | L36: =IFERROR(CIB[[#This Row],[Deposits]]-CIB[[#This Row],[Payments]],"") -> -9613.05 | M36: =IFERROR(IF(_xlfn.AGGREGATE(3,5,CIB[[#This Row],[Out]])=1,1,0),"") -> 1
B37: =TEXT(CIB[[#This Row],[Date]],"mmm-yyyy") -> أغسطس-2023 | C37: =IF(+CIB[[#This Row],[Due Date]]<=1/1/1900,"",+CIB[[#This Row],[Due Date]]) -> 2023-08-20 | D37: 26 | E37: 2023-08-20 | F37: 26 | H37: 9613.05 | I37: =+I36+CIB[[#This Row],[Deposits]]-CIB[[#This Row],[Payments]] -> 4220812.54 | J37: Not Due | K37: =+IF(CIB[[#This Row],[Due Date]]>TD,"Hold","") -> Hold | L37: =IFERROR(CIB[[#This Row],[Deposits]]-CIB[[#This Row],[Payments]],"") -> -9613.05 | M37: =IFERROR(IF(_xlfn.AGGREGATE(3,5,CIB[[#This Row],[Out]])=1,1,0),"") -> 1
B38: =TEXT(CIB[[#This Row],[Date]],"mmm-yyyy") -> سبتمبر-2023 | C38: =IF(+CIB[[#This Row],[Due Date]]<=1/1/1900,"",+CIB[[#This Row],[Due Date]]) -> 2023-09-20 | D38: 27 | E38: 2023-09-20 | F38: 27 | H38: 9613.05 | I38: =+I37+CIB[[#This Row],[Deposits]]-CIB[[#This Row],[Payments]] -> 4211199.49 | J38: Not Due | K38: =+IF(CIB[[#This Row],[Due Date]]>TD,"Hold","") -> Hold | L38: =IFERROR(CIB[[#This Row],[Deposits]]-CIB[[#This Row],[Payments]],"") -> -9613.05 | M38: =IFERROR(IF(_xlfn.AGGREGATE(3,5,CIB[[#This Row],[Out]])=1,1,0),"") -> 1
B39: =TEXT(CIB[[#This Row],[Date]],"mmm-yyyy") -> أكتوبر-2023 | C39: =IF(+CIB[[#This Row],[Due Date]]<=1/1/1900,"",+CIB[[#This Row],[Due Date]]) -> 2023-10-20 | D39: 28 | E39: 2023-10-20 | F39: 28 | H39: 9613.05 | I39: =+I38+CIB[[#This Row],[Deposits]]-CIB[[#This Row],[Payments]] -> 4201586.44 | J39: Not Due | K39: =+IF(CIB[[#This Row],[Due Date]]>TD,"Hold","") -> Hold | L39: =IFERROR(CIB[[#This Row],[Deposits]]-CIB[[#This Row],[Payments]],"") -> -9613.05 | M39: =IFERROR(IF(_xlfn.AGGREGATE(3,5,CIB[[#This Row],[Out]])=1,1,0),"") -> 1
B40: =TEXT(CIB[[#This Row],[Date]],"mmm-yyyy") -> نوفمبر-2023 | C40: =IF(+CIB[[#This Row],[Due Date]]<=1/1/1900,"",+CIB[[#This Row],[Due Date]]) -> 2023-11-20 | D40: 29 | E40: 2023-11-20 | F40: 29 | H40: 9613.05 | I40: =+I39+CIB[[#This Row],[Deposits]]-CIB[[#This Row],[Payments]] -> 4191973.39 | J40: Not Due | K40: =+IF(CIB[[#This Row],[Due Date]]>TD,"Hold","") -> Hold | L40: =IFERROR(CIB[[#This Row],[Deposits]]-CIB[[#This Row],[Payments]],"") -> -9613.05 | M40: =IFERROR(IF(_xlfn.AGGREGATE(3,5,CIB[[#This Row],[Out]])=1,1,0),"") -> 1
B41: =TEXT(CIB[[#This Row],[Date]],"mmm-yyyy") -> ديسمبر-2023 | C41: =IF(+CIB[[#This Row],[Due Date]]<=1/1/1900,"",+CIB[[#This Row],[Due Date]]) -> 2023-12-20 | D41: 30 | E41: 2023-12-20 | F41: 30 | H41: 9613.05 | I41: =+I40+CIB[[#This Row],[Deposits]]-CIB[[#This Row],[Payments]] -> 4182360.34 | J41: Not Due | K41: =+IF(CIB[[#This Row],[Due Date]]>TD,"Hold","") -> Hold | L41: =IFERROR(CIB[[#This Row],[Deposits]]-CIB[[#This Row],[Payments]],"") -> -9613.05 | M41: =IFERROR(IF(_xlfn.AGGREGATE(3,5,CIB[[#This Row],[Out]])=1,1,0),"") -> 1
B42: =TEXT(CIB[[#This Row],[Date]],"mmm-yyyy") -> يناير-2024 | C42: =IF(+CIB[[#This Row],[Due Date]]<=1/1/1900,"",+CIB[[#This Row],[Due Date]]) -> 2024-01-20 | D42: 31 | E42: 2024-01-20 | F42: 31 | H42: 9613.05 | I42: =+I41+CIB[[#This Row],[Deposits]]-CIB[[#This Row],[Payments]] -> 4172747.29 | J42: Not Due | K42: =+IF(CIB[[#This Row],[Due Date]]>TD,"Hold","") -> Hold | L42: =IFERROR(CIB[[#This Row],[Deposits]]-CIB[[#This Row],[Payments]],"") -> -9613.05 | M42: =IFERROR(IF(_xlfn.AGGREGATE(3,5,CIB[[#This Row],[Out]])=1,1,0),"") -> 1
B43: =TEXT(CIB[[#This Row],[Date]],"mmm-yyyy") -> فبراير-2024 | C43: =IF(+CIB[[#This Row],[Due Date]]<=1/1/1900,"",+CIB[[#This Row],[Due Date]]) -> 2024-02-20 | D43: 32 | E43: 2024-02-20 | F43: 32 | H43: 9613.05 | I43: =+I42+CIB[[#This Row],[Deposits]]-CIB[[#This Row],[Payments]] -> 4163134.24 | J43: Not Due | K43: =+IF(CIB[[#This Row],[Due Date]]>TD,"Hold","") -> Hold | L43: =IFERROR(CIB[[#This Row],[Deposits]]-CIB[[#This Row],[Payments]],"") -> -9613.05 | M43: =IFERROR(IF(_xlfn.AGGREGATE(3,5,CIB[[#This Row],[Out]])=1,1,0),"") -> 1
B44: =TEXT(CIB[[#This Row],[Date]],"mmm-yyyy") -> مارس-2024 | C44: =IF(+CIB[[#This Row],[Due Date]]<=1/1/1900,"",+CIB[[#This Row],[Due Date]]) -> 2024-03-20 | D44: 33 | E44: 2024-03-20 | F44: 33 | H44: 9613.05 | I44: =+I43+CIB[[#This Row],[Deposits]]-CIB[[#This Row],[Payments]] -> 4153521.19 | J44: Not Due | K44: =+IF(CIB[[#This Row],[Due Date]]>TD,"Hold","") -> Hold | L44: =IFERROR(CIB[[#This Row],[Deposits]]-CIB[[#This Row],[Payments]],"") -> -9613.05 | M44: =IFERROR(IF(_xlfn.AGGREGATE(3,5,CIB[[#This Row],[Out]])=1,1,0),"") -> 1
B45: =TEXT(CIB[[#This Row],[Date]],"mmm-yyyy") -> أبريل-2024 | C45: =IF(+CIB[[#This Row],[Due Date]]<=1/1/1900,"",+CIB[[#This Row],[Due Date]]) -> 2024-04-20 | D45: 34 | E45: 2024-04-20 | F45: 34 | H45: 9613.05 | I45: =+I44+CIB[[#This Row],[Deposits]]-CIB[[#This Row],[Payments]] -> 4143908.14 | J45: Not Due | K45: =+IF(CIB[[#This Row],[Due Date]]>TD,"Hold","") -> Hold | L45: =IFERROR(CIB[[#This Row],[Deposits]]-CIB[[#This Row],[Payments]],"") -> -9613.05 | M45: =IFERROR(IF(_xlfn.AGGREGATE(3,5,CIB[[#This Row],[Out]])=1,1,0),"") -> 1
B46: =TEXT(CIB[[#This Row],[Date]],"mmm-yyyy") -> مايو-2024 | C46: =IF(+CIB[[#This Row],[Due Date]]<=1/1/1900,"",+CIB[[#This Row],[Due Date]]) -> 2024-05-20 | D46: 35 | E46: 2024-05-20 | F46: 35 | H46: 9613.05 | I46: =+I45+CIB[[#This Row],[Deposits]]-CIB[[#This Row],[Payments]] -> 4134295.09 | J46: Not Due | K46: =+IF(CIB[[#This Row],[Due Date]]>TD,"Hold","") -> Hold | L46: =IFERROR(CIB[[#This Row],[Deposits]]-CIB[[#This Row],[Payments]],"") -> -9613.05 | M46: =IFERROR(IF(_xlfn.AGGREGATE(3,5,CIB[[#This Row],[Out]])=1,1,0),"") -> 1
B47: =TEXT(CIB[[#This Row],[Date]],"mmm-yyyy") -> يونيو-2024 | C47: =IF(+CIB[[#This Row],[Due Date]]<=1/1/1900,"",+CIB[[#This Row],[Due Date]]) -> 2024-06-20 | D47: 36 | E47: 2024-06-20 | F47: 36 | H47: 9613.05 | I47: =+I46+CIB[[#This Row],[Deposits]]-CIB[[#This Row],[Payments]] -> 4124682.04 | J47: Not Due | K47: =+IF(CIB[[#This Row],[Due Date]]>TD,"Hold","") -> Hold | L47: =IFERROR(CIB[[#This Row],[Deposits]]-CIB[[#This Row],[Payments]],"") -> -9613.05 | M47: =IFERROR(IF(_xlfn.AGGREGATE(3,5,CIB[[#This Row],[Out]])=1,1,0),"") -> 1
B48: =TEXT(CIB[[#This Row],[Date]],"mmm-yyyy") -> يونيو-2022 | C48: =IF(+CIB[[#This Row],[Due Date]]<=1/1/1900,"",+CIB[[#This Row],[Due Date]]) -> 2022-06-01 | D48: 37 | E48: 2022-06-01 | F48: 37 | H48: 8248 | I48: =+I47+CIB[[#This Row],[Deposits]]-CIB[[#This Row],[Payments]] -> 4116434.04 | J48: Current | K48: =+IF(CIB[[#This Row],[Due Date]]>TD,"Hold","") ->  | L48: =IFERROR(CIB[[#This Row],[Deposits]]-CIB[[#This Row],[Payments]],"") -> -8248 | M48: =IFERROR(IF(_xlfn.AGGREGATE(3,5,CIB[[#This Row],[Out]])=1,1,0),"") -> 1
B49: =TEXT(CIB[[#This Row],[Date]],"mmm-yyyy") -> يونيو-2023 | C49: =IF(+CIB[[#This Row],[Due Date]]<=1/1/1900,"",+CIB[[#This Row],[Due Date]]) -> 2023-06-01 | D49: 38 | E49: 2023-06-01 | F49: 38 | H49: 8248 | I49: =+I48+CIB[[#This Row],[Deposits]]-CIB[[#This Row],[Payments]] -> 4108186.04 | J49: Not Due | K49: =+IF(CIB[[#This Row],[Due Date]]>TD,"Hold","") -> Hold | L49: =IFERROR(CIB[[#This Row],[Deposits]]-CIB[[#This Row],[Payments]],"") -> -8248 | M49: =IFERROR(IF(_xlfn.AGGREGATE(3,5,CIB[[#This Row],[Out]])=1,1,0),"") -> 1
B50: =TEXT(CIB[[#This Row],[Date]],"mmm-yyyy") -> يناير-2022 | C50: =IF(+CIB[[#This Row],[Due Date]]<=1/1/1900,"",+CIB[[#This Row],[Due Date]]) -> 2022-01-20 | D50: 39 | E50: 2022-01-20 | F50: 39 | H50: 16663.11 | I50: =+I49+CIB[[#This Row],[Deposits]]-CIB[[#This Row],[Payments]] -> 4091522.93 | J50: Current | K50: =+IF(CIB[[#This Row],[Due Date]]>TD,"Hold","") ->  | L50: =IFERROR(CIB[[#This Row],[Deposits]]-CIB[[#This Row],[Payments]],"") -> -16663.11 | M50: =IFERROR(IF(_xlfn.AGGREGATE(3,5,CIB[[#This Row],[Out]])=1,1,0),"") -> 1
B51: =TEXT(CIB[[#This Row],[Date]],"mmm-yyyy") -> فبراير-2022 | C51: =IF(+CIB[[#This Row],[Due Date]]<=1/1/1900,"",+CIB[[#This Row],[Due Date]]) -> 2022-02-20 | D51: 40 | E51: 2022-02-20 | F51: 40 | H51: 16663.11 | I51: =+I50+CIB[[#This Row],[Deposits]]-CIB[[#This Row],[Payments]] -> 4074859.82 | J51: Current | K51: =+IF(CIB[[#This Row],[Due Date]]>TD,"Hold","") ->  | L51: =IFERROR(CIB[[#This Row],[Deposits]]-CIB[[#This Row],[Payments]],"") -> -16663.11 | M51: =IFERROR(IF(_xlfn.AGGREGATE(3,5,CIB[[#This Row],[Out]])=1,1,0),"") -> 1
B52: =TEXT(CIB[[#This Row],[Date]],"mmm-yyyy") -> مارس-2022 | C52: =IF(+CIB[[#This Row],[Due Date]]<=1/1/1900,"",+CIB[[#This Row],[Due Date]]) -> 2022-03-20 | D52: 41 | E52: 2022-03-20 | F52: 41 | H52: 16663.11 | I52: =+I51+CIB[[#This Row],[Deposits]]-CIB[[#This Row],[Payments]] -> 4058196.71 | J52: Current | K52: =+IF(CIB[[#This Row],[Due Date]]>TD,"Hold","") ->  | L52: =IFERROR(CIB[[#This Row],[Deposits]]-CIB[[#This Row],[Payments]],"") -> -16663.11 | M52: =IFERROR(IF(_xlfn.AGGREGATE(3,5,CIB[[#This Row],[Out]])=1,1,0),"") -> 1
B53: =TEXT(CIB[[#This Row],[Date]],"mmm-yyyy") -> أبريل-2022 | C53: =IF(+CIB[[#This Row],[Due Date]]<=1/1/1900,"",+CIB[[#This Row],[Due Date]]) -> 2022-04-20 | D53: 42 | E53: 2022-04-20 | F53: 42 | H53: 16663.11 | I53: =+I52+CIB[[#This Row],[Deposits]]-CIB[[#This Row],[Payments]] -> 4041533.6 | J53: Current | K53: =+IF(CIB[[#This Row],[Due Date]]>TD,"Hold","") ->  | L53: =IFERROR(CIB[[#This Row],[Deposits]]-CIB[[#This Row],[Payments]],"") -> -16663.11 | M53: =IFERROR(IF(_xlfn.AGGREGATE(3,5,CIB[[#This Row],[Out]])=1,1,0),"") -> 1
B54: =TEXT(CIB[[#This Row],[Date]],"mmm-yyyy") -> مايو-2022 | C54: =IF(+CIB[[#This Row],[Due Date]]<=1/1/1900,"",+CIB[[#This Row],[Due Date]]) -> 2022-05-20 | D54: 43 | E54: 2022-05-20 | F54: 43 | H54: 16663.11 | I54: =+I53+CIB[[#This Row],[Deposits]]-CIB[[#This Row],[Payments]] -> 4024870.49 | J54: Current | K54: =+IF(CIB[[#This Row],[Due Date]]>TD,"Hold","") ->  | L54: =IFERROR(CIB[[#This Row],[Deposits]]-CIB[[#This Row],[Payments]],"") -> -16663.11 | M54: =IFERROR(IF(_xlfn.AGGREGATE(3,5,CIB[[#This Row],[Out]])=1,1,0),"") -> 1
B55: =TEXT(CIB[[#This Row],[Date]],"mmm-yyyy") -> يونيو-2022 | C55: =IF(+CIB[[#This Row],[Due Date]]<=1/1/1900,"",+CIB[[#This Row],[Due Date]]) -> 2022-06-20 | D55: 44 | E55: 2022-06-20 | F55: 44 | H55: 16663.11 | I55: =+I54+CIB[[#This Row],[Deposits]]-CIB[[#This Row],[Payments]] -> 4008207.38 | J55: Current | K55: =+IF(CIB[[#This Row],[Due Date]]>TD,"Hold","") ->  | L55: =IFERROR(CIB[[#This Row],[Deposits]]-CIB[[#This Row],[Payments]],"") -> -16663.11 | M55: =IFERROR(IF(_xlfn.AGGREGATE(3,5,CIB[[#This Row],[Out]])=1,1,0),"") -> 1
B56: =TEXT(CIB[[#This Row],[Date]],"mmm-yyyy") -> يوليو-2022 | C56: =IF(+CIB[[#This Row],[Due Date]]<=1/1/1900,"",+CIB[[#This Row],[Due Date]]) -> 2022-07-20 | D56: 45 | E56: 2022-07-20 | F56: 45 | H56: 16663.11 | I56: =+I55+CIB[[#This Row],[Deposits]]-CIB[[#This Row],[Payments]] -> 3991544.27 | J56: Current | K56: =+IF(CIB[[#This Row],[Due Date]]>TD,"Hold","") ->  | L56: =IFERROR(CIB[[#This Row],[Deposits]]-CIB[[#This Row],[Payments]],"") -> -16663.11 | M56: =IFERROR(IF(_xlfn.AGGREGATE(3,5,CIB[[#This Row],[Out]])=1,1,0),"") -> 1
B57: =TEXT(CIB[[#This Row],[Date]],"mmm-yyyy") -> أغسطس-2022 | C57: =IF(+CIB[[#This Row],[Due Date]]<=1/1/1900,"",+CIB[[#This Row],[Due Date]]) -> 2022-08-20 | D57: 46 | E57: 2022-08-20 | F57: 46 | H57: 16663.11 | I57: =+I56+CIB[[#This Row],[Deposits]]-CIB[[#This Row],[Payments]] -> 3974881.16 | J57: Current | K57: =+IF(CIB[[#This Row],[Due Date]]>TD,"Hold","") ->  | L57: =IFERROR(CIB[[#This Row],[Deposits]]-CIB[[#This Row],[Payments]],"") -> -16663.11 | M57: =IFERROR(IF(_xlfn.AGGREGATE(3,5,CIB[[#This Row],[Out]])=1,1,0),"") -> 1
B58: =TEXT(CIB[[#This Row],[Date]],"mmm-yyyy") -> سبتمبر-2022 | C58: =IF(+CIB[[#This Row],[Due Date]]<=1/1/1900,"",+CIB[[#This Row],[Due Date]]) -> 2022-09-20 | D58: 47 | E58: 2022-09-20 | F58: 47 | H58: 16663.11 | I58: =+I57+CIB[[#This Row],[Deposits]]-CIB[[#This Row],[Payments]] -> 3958218.05 | J58: Current | K58: =+IF(CIB[[#This Row],[Due Date]]>TD,"Hold","") ->  | L58: =IFERROR(CIB[[#This Row],[Deposits]]-CIB[[#This Row],[Payments]],"") -> -16663.11 | M58: =IFERROR(IF(_xlfn.AGGREGATE(3,5,CIB[[#This Row],[Out]])=1,1,0),"") -> 1
B59: =TEXT(CIB[[#This Row],[Date]],"mmm-yyyy") -> أكتوبر-2022 | C59: =IF(+CIB[[#This Row],[Due Date]]<=1/1/1900,"",+CIB[[#This Row],[Due Date]]) -> 2022-10-20 | D59: 48 | E59: 2022-10-20 | F59: 48 | H59: 16663.11 | I59: =+I58+CIB[[#This Row],[Deposits]]-CIB[[#This Row],[Payments]] -> 3941554.94 | J59: Not Due | K59: =+IF(CIB[[#This Row],[Due Date]]>TD,"Hold","") -> Hold | L59: =IFERROR(CIB[[#This Row],[Deposits]]-CIB[[#This Row],[Payments]],"") -> -16663.11 | M59: =IFERROR(IF(_xlfn.AGGREGATE(3,5,CIB[[#This Row],[Out]])=1,1,0),"") -> 1
B60: =TEXT(CIB[[#This Row],[Date]],"mmm-yyyy") -> نوفمبر-2022 | C60: =IF(+CIB[[#This Row],[Due Date]]<=1/1/1900,"",+CIB[[#This Row],[Due Date]]) -> 2022-11-20 | D60: 49 | E60: 2022-11-20 | F60: 49 | H60: 16663.11 | I60: =+I59+CIB[[#This Row],[Deposits]]-CIB[[#This Row],[Payments]] -> 3924891.83 | J60: Not Due | K60: =+IF(CIB[[#This Row],[Due Date]]>TD,"Hold","") -> Hold | L60: =IFERROR(CIB[[#This Row],[Deposits]]-CIB[[#This Row],[Payments]],"") -> -16663.11 | M60: =IFERROR(IF(_xlfn.AGGREGATE(3,5,CIB[[#This Row],[Out]])=1,1,0),"") -> 1
B61: =TEXT(CIB[[#This Row],[Date]],"mmm-yyyy") -> ديسمبر-2022 | C61: =IF(+CIB[[#This Row],[Due Date]]<=1/1/1900,"",+CIB[[#This Row],[Due Date]]) -> 2022-12-20 | D61: 50 | E61: 2022-12-20 | F61: 50 | H61: 16663.11 | I61: =+I60+CIB[[#This Row],[Deposits]]-CIB[[#This Row],[Payments]] -> 3908228.72 | J61: Not Due | K61: =+IF(CIB[[#This Row],[Due Date]]>TD,"Hold","") -> Hold | L61: =IFERROR(CIB[[#This Row],[Deposits]]-CIB[[#This Row],[Payments]],"") -> -16663.11 | M61: =IFERROR(IF(_xlfn.AGGREGATE(3,5,CIB[[#This Row],[Out]])=1,1,0),"") -> 1
B62: =TEXT(CIB[[#This Row],[Date]],"mmm-yyyy") -> يناير-2023 | C62: =IF(+CIB[[#This Row],[Due Date]]<=1/1/1900,"",+CIB[[#This Row],[Due Date]]) -> 2023-01-20 | D62: 51 | E62: 2023-01-20 | F62: 51 | H62: 16663.11 | I62: =+I61+CIB[[#This Row],[Deposits]]-CIB[[#This Row],[Payments]] -> 3891565.61 | J62: Not Due | K62: =+IF(CIB[[#This Row],[Due Date]]>TD,"Hold","") -> Hold | L62: =IFERROR(CIB[[#This Row],[Deposits]]-CIB[[#This Row],[Payments]],"") -> -16663.11 | M62: =IFERROR(IF(_xlfn.AGGREGATE(3,5,CIB[[#This Row],[Out]])=1,1,0),"") -> 1
B63: =TEXT(CIB[[#This Row],[Date]],"mmm-yyyy") -> فبراير-2023 | C63: =IF(+CIB[[#This Row],[Due Date]]<=1/1/1900,"",+CIB[[#This Row],[Due Date]]) -> 2023-02-20 | D63: 52 | E63: 2023-02-20 | F63: 52 | H63: 16663.11 | I63: =+I62+CIB[[#This Row],[Deposits]]-CIB[[#This Row],[Payments]] -> 3874902.5 | J63: Not Due | K63: =+IF(CIB[[#This Row],[Due Date]]>TD,"Hold","") -> Hold | L63: =IFERROR(CIB[[#This Row],[Deposits]]-CIB[[#This Row],[Payments]],"") -> -16663.11 | M63: =IFERROR(IF(_xlfn.AGGREGATE(3,5,CIB[[#This Row],[Out]])=1,1,0),"") -> 1
B64: =TEXT(CIB[[#This Row],[Date]],"mmm-yyyy") -> مارس-2023 | C64: =IF(+CIB[[#This Row],[Due Date]]<=1/1/1900,"",+CIB[[#This Row],[Due Date]]) -> 2023-03-20 | D64: 53 | E64: 2023-03-20 | F64: 53 | H64: 16663.11 | I64: =+I63+CIB[[#This Row],[Deposits]]-CIB[[#This Row],[Payments]] -> 3858239.39 | J64: Not Due | K64: =+IF(CIB[[#This Row],[Due Date]]>TD,"Hold","") -> Hold | L64: =IFERROR(CIB[[#This Row],[Deposits]]-CIB[[#This Row],[Payments]],"") -> -16663.11 | M64: =IFERROR(IF(_xlfn.AGGREGATE(3,5,CIB[[#This Row],[Out]])=1,1,0),"") -> 1
B65: =TEXT(CIB[[#This Row],[Date]],"mmm-yyyy") -> أبريل-2023 | C65: =IF(+CIB[[#This Row],[Due Date]]<=1/1/1900,"",+CIB[[#This Row],[Due Date]]) -> 2023-04-20 | D65: 54 | E65: 2023-04-20 | F65: 54 | H65: 16663.11 | I65: =+I64+CIB[[#This Row],[Deposits]]-CIB[[#This Row],[Payments]] -> 3841576.28 | J65: Not Due | K65: =+IF(CIB[[#This Row],[Due Date]]>TD,"Hold","") -> Hold | L65: =IFERROR(CIB[[#This Row],[Deposits]]-CIB[[#This Row],[Payments]],"") -> -16663.11 | M65: =IFERROR(IF(_xlfn.AGGREGATE(3,5,CIB[[#This Row],[Out]])=1,1,0),"") -> 1
B66: =TEXT(CIB[[#This Row],[Date]],"mmm-yyyy") -> مايو-2023 | C66: =IF(+CIB[[#This Row],[Due Date]]<=1/1/1900,"",+CIB[[#This Row],[Due Date]]) -> 2023-05-20 | D66: 55 | E66: 2023-05-20 | F66: 55 | H66: 16663.11 | I66: =+I65+CIB[[#This Row],[Deposits]]-CIB[[#This Row],[Payments]] -> 3824913.17 | J66: Not Due | K66: =+IF(CIB[[#This Row],[Due Date]]>TD,"Hold","") -> Hold | L66: =IFERROR(CIB[[#This Row],[Deposits]]-CIB[[#This Row],[Payments]],"") -> -16663.11 | M66: =IFERROR(IF(_xlfn.AGGREGATE(3,5,CIB[[#This Row],[Out]])=1,1,0),"") -> 1
B67: =TEXT(CIB[[#This Row],[Date]],"mmm-yyyy") -> يونيو-2023 | C67: =IF(+CIB[[#This Row],[Due Date]]<=1/1/1900,"",+CIB[[#This Row],[Due Date]]) -> 2023-06-20 | D67: 56 | E67: 2023-06-20 | F67: 56 | H67: 16663.11 | I67: =+I66+CIB[[#This Row],[Deposits]]-CIB[[#This Row],[Payments]] -> 3808250.06 | J67: Not Due | K67: =+IF(CIB[[#This Row],[Due Date]]>TD,"Hold","") -> Hold | L67: =IFERROR(CIB[[#This Row],[Deposits]]-CIB[[#This Row],[Payments]],"") -> -16663.11 | M67: =IFERROR(IF(_xlfn.AGGREGATE(3,5,CIB[[#This Row],[Out]])=1,1,0),"") -> 1
B68: =TEXT(CIB[[#This Row],[Date]],"mmm-yyyy") -> يوليو-2023 | C68: =IF(+CIB[[#This Row],[Due Date]]<=1/1/1900,"",+CIB[[#This Row],[Due Date]]) -> 2023-07-20 | D68: 57 | E68: 2023-07-20 | F68: 57 | H68: 16663.11 | I68: =+I67+CIB[[#This Row],[Deposits]]-CIB[[#This Row],[Payments]] -> 3791586.95 | J68: Not Due | K68: =+IF(CIB[[#This Row],[Due Date]]>TD,"Hold","") -> Hold | L68: =IFERROR(CIB[[#This Row],[Deposits]]-CIB[[#This Row],[Payments]],"") -> -16663.11 | M68: =IFERROR(IF(_xlfn.AGGREGATE(3,5,CIB[[#This Row],[Out]])=1,1,0),"") -> 1
B69: =TEXT(CIB[[#This Row],[Date]],"mmm-yyyy") -> أغسطس-2023 | C69: =IF(+CIB[[#This Row],[Due Date]]<=1/1/1900,"",+CIB[[#This Row],[Due Date]]) -> 2023-08-20 | D69: 58 | E69: 2023-08-20 | F69: 58 | H69: 16663.11 | I69: =+I68+CIB[[#This Row],[Deposits]]-CIB[[#This Row],[Payments]] -> 3774923.84 | J69: Not Due | K69: =+IF(CIB[[#This Row],[Due Date]]>TD,"Hold","") -> Hold | L69: =IFERROR(CIB[[#This Row],[Deposits]]-CIB[[#This Row],[Payments]],"") -> -16663.11 | M69: =IFERROR(IF(_xlfn.AGGREGATE(3,5,CIB[[#This Row],[Out]])=1,1,0),"") -> 1
B70: =TEXT(CIB[[#This Row],[Date]],"mmm-yyyy") -> سبتمبر-2023 | C70: =IF(+CIB[[#This Row],[Due Date]]<=1/1/1900,"",+CIB[[#This Row],[Due Date]]) -> 2023-09-20 | D70: 59 | E70: 2023-09-20 | F70: 59 | H70: 16663.11 | I70: =+I69+CIB[[#This Row],[Deposits]]-CIB[[#This Row],[Payments]] -> 3758260.73 | J70: Not Due | K70: =+IF(CIB[[#This Row],[Due Date]]>TD,"Hold","") -> Hold | L70: =IFERROR(CIB[[#This Row],[Deposits]]-CIB[[#This Row],[Payments]],"") -> -16663.11 | M70: =IFERROR(IF(_xlfn.AGGREGATE(3,5,CIB[[#This Row],[Out]])=1,1,0),"") -> 1
B71: =TEXT(CIB[[#This Row],[Date]],"mmm-yyyy") -> أكتوبر-2023 | C71: =IF(+CIB[[#This Row],[Due Date]]<=1/1/1900,"",+CIB[[#This Row],[Due Date]]) -> 2023-10-20 | D71: 60 | E71: 2023-10-20 | F71: 60 | H71: 16663.11 | I71: =+I70+CIB[[#This Row],[Deposits]]-CIB[[#This Row],[Payments]] -> 3741597.62 | J71: Not Due | K71: =+IF(CIB[[#This Row],[Due Date]]>TD,"Hold","") -> Hold | L71: =IFERROR(CIB[[#This Row],[Deposits]]-CIB[[#This Row],[Payments]],"") -> -16663.11 | M71: =IFERROR(IF(_xlfn.AGGREGATE(3,5,CIB[[#This Row],[Out]])=1,1,0),"") -> 1
B72: =TEXT(CIB[[#This Row],[Date]],"mmm-yyyy") -> نوفمبر-2023 | C72: =IF(+CIB[[#This Row],[Due Date]]<=1/1/1900,"",+CIB[[#This Row],[Due Date]]) -> 2023-11-20 | D72: 61 | E72: 2023-11-20 | F72: 61 | H72: 16663.11 | I72: =+I71+CIB[[#This Row],[Deposits]]-CIB[[#This Row],[Payments]] -> 3724934.51 | J72: Not Due | K72: =+IF(CIB[[#This Row],[Due Date]]>TD,"Hold","") -> Hold | L72: =IFERROR(CIB[[#This Row],[Deposits]]-CIB[[#This Row],[Payments]],"") -> -16663.11 | M72: =IFERROR(IF(_xlfn.AGGREGATE(3,5,CIB[[#This Row],[Out]])=1,1,0),"") -> 1
B73: =TEXT(CIB[[#This Row],[Date]],"mmm-yyyy") -> ديسمبر-2023 | C73: =IF(+CIB[[#This Row],[Due Date]]<=1/1/1900,"",+CIB[[#This Row],[Due Date]]) -> 2023-12-20 | D73: 62 | E73: 2023-12-20 | F73: 62 | H73: 16663.11 | I73: =+I72+CIB[[#This Row],[Deposits]]-CIB[[#This Row],[Payments]] -> 3708271.4 | J73: Not Due | K73: =+IF(CIB[[#This Row],[Due Date]]>TD,"Hold","") -> Hold | L73: =IFERROR(CIB[[#This Row],[Deposits]]-CIB[[#This Row],[Payments]],"") -> -16663.11 | M73: =IFERROR(IF(_xlfn.AGGREGATE(3,5,CIB[[#This Row],[Out]])=1,1,0),"") -> 1
B74: =TEXT(CIB[[#This Row],[Date]],"mmm-yyyy") -> يناير-2024 | C74: =IF(+CIB[[#This Row],[Due Date]]<=1/1/1900,"",+CIB[[#This Row],[Due Date]]) -> 2024-01-20 | D74: 63 | E74: 2024-01-20 | F74: 63 | H74: 16663.11 | I74: =+I73+CIB[[#This Row],[Deposits]]-CIB[[#This Row],[Payments]] -> 3691608.29 | J74: Not Due | K74: =+IF(CIB[[#This Row],[Due Date]]>TD,"Hold","") -> Hold | L74: =IFERROR(CIB[[#This Row],[Deposits]]-CIB[[#This Row],[Payments]],"") -> -16663.11 | M74: =IFERROR(IF(_xlfn.AGGREGATE(3,5,CIB[[#This Row],[Out]])=1,1,0),"") -> 1
B75: =TEXT(CIB[[#This Row],[Date]],"mmm-yyyy") -> فبراير-2024 | C75: =IF(+CIB[[#This Row],[Due Date]]<=1/1/1900,"",+CIB[[#This Row],[Due Date]]) -> 2024-02-20 | D75: 64 | E75: 2024-02-20 | F75: 64 | H75: 16663.11 | I75: =+I74+CIB[[#This Row],[Deposits]]-CIB[[#This Row],[Payments]] -> 3674945.18 | J75: Not Due | K75: =+IF(CIB[[#This Row],[Due Date]]>TD,"Hold","") -> Hold | L75: =IFERROR(CIB[[#This Row],[Deposits]]-CIB[[#This Row],[Payments]],"") -> -16663.11 | M75: =IFERROR(IF(_xlfn.AGGREGATE(3,5,CIB[[#This Row],[Out]])=1,1,0),"") -> 1
B76: =TEXT(CIB[[#This Row],[Date]],"mmm-yyyy") -> مارس-2024 | C76: =IF(+CIB[[#This Row],[Due Date]]<=1/1/1900,"",+CIB[[#This Row],[Due Date]]) -> 2024-03-20 | D76: 65 | E76: 2024-03-20 | F76: 65 | H76: 16663.11 | I76: =+I75+CIB[[#This Row],[Deposits]]-CIB[[#This Row],[Payments]] -> 3658282.07 | J76: Not Due | K76: =+IF(CIB[[#This Row],[Due Date]]>TD,"Hold","") -> Hold | L76: =IFERROR(CIB[[#This Row],[Deposits]]-CIB[[#This Row],[Payments]],"") -> -16663.11 | M76: =IFERROR(IF(_xlfn.AGGREGATE(3,5,CIB[[#This Row],[Out]])=1,1,0),"") -> 1
B77: =TEXT(CIB[[#This Row],[Date]],"mmm-yyyy") -> أبريل-2024 | C77: =IF(+CIB[[#This Row],[Due Date]]<=1/1/1900,"",+CIB[[#This Row],[Due Date]]) -> 2024-04-20 | D77: 66 | E77: 2024-04-20 | F77: 66 | H77: 16663.11 | I77: =+I76+CIB[[#This Row],[Deposits]]-CIB[[#This Row],[Payments]] -> 3641618.96 | J77: Not Due | K77: =+IF(CIB[[#This Row],[Due Date]]>TD,"Hold","") -> Hold | L77: =IFERROR(CIB[[#This Row],[Deposits]]-CIB[[#This Row],[Payments]],"") -> -16663.11 | M77: =IFERROR(IF(_xlfn.AGGREGATE(3,5,CIB[[#This Row],[Out]])=1,1,0),"") -> 1
B78: =TEXT(CIB[[#This Row],[Date]],"mmm-yyyy") -> مايو-2024 | C78: =IF(+CIB[[#This Row],[Due Date]]<=1/1/1900,"",+CIB[[#This Row],[Due Date]]) -> 2024-05-20 | D78: 67 | E78: 2024-05-20 | F78: 67 | H78: 16663.11 | I78: =+I77+CIB[[#This Row],[Deposits]]-CIB[[#This Row],[Payments]] -> 3624955.85 | J78: Not Due | K78: =+IF(CIB[[#This Row],[Due Date]]>TD,"Hold","") -> Hold | L78: =IFERROR(CIB[[#This Row],[Deposits]]-CIB[[#This Row],[Payments]],"") -> -16663.11 | M78: =IFERROR(IF(_xlfn.AGGREGATE(3,5,CIB[[#This Row],[Out]])=1,1,0),"") -> 1
B79: =TEXT(CIB[[#This Row],[Date]],"mmm-yyyy") -> يونيو-2024 | C79: =IF(+CIB[[#This Row],[Due Date]]<=1/1/1900,"",+CIB[[#This Row],[Due Date]]) -> 2024-06-20 | D79: 68 | E79: 2024-06-20 | F79: 68 | H79: 16663.11 | I79: =+I78+CIB[[#This Row],[Deposits]]-CIB[[#This Row],[Payments]] -> 3608292.74 | J79: Not Due | K79: =+IF(CIB[[#This Row],[Due Date]]>TD,"Hold","") -> Hold | L79: =IFERROR(CIB[[#This Row],[Deposits]]-CIB[[#This Row],[Payments]],"") -> -16663.11 | M79: =IFERROR(IF(_xlfn.AGGREGATE(3,5,CIB[[#This Row],[Out]])=1,1,0),"") -> 1
B80: =TEXT(CIB[[#This Row],[Date]],"mmm-yyyy") -> يونيو-2022 | C80: =IF(+CIB[[#This Row],[Due Date]]<=1/1/1900,"",+CIB[[#This Row],[Due Date]]) -> 2022-06-01 | D80: 69 | E80: 2022-06-01 | F80: 69 | H80: 11603 | I80: =+I79+CIB[[#This Row],[Deposits]]-CIB[[#This Row],[Payments]] -> 3596689.74 | J80: Current | K80: =+IF(CIB[[#This Row],[Due Date]]>TD,"Hold","") ->  | L80: =IFERROR(CIB[[#This Row],[Deposits]]-CIB[[#This Row],[Payments]],"") -> -11603 | M80: =IFERROR(IF(_xlfn.AGGREGATE(3,5,CIB[[#This Row],[Out]])=1,1,0),"") -> 1
B81: =TEXT(CIB[[#This Row],[Date]],"mmm-yyyy") -> يونيو-2023 | C81: =IF(+CIB[[#This Row],[Due Date]]<=1/1/1900,"",+CIB[[#This Row],[Due Date]]) -> 2023-06-01 | D81: 70 | E81: 2023-06-01 | F81: 70 | H81: 11603 | I81: =+I80+CIB[[#This Row],[Deposits]]-CIB[[#This Row],[Payments]] -> 3585086.74 | J81: Not Due | K81: =+IF(CIB[[#This Row],[Due Date]]>TD,"Hold","") -> Hold | L81: =IFERROR(CIB[[#This Row],[Deposits]]-CIB[[#This Row],[Payments]],"") -> -11603 | M81: =IFERROR(IF(_xlfn.AGGREGATE(3,5,CIB[[#This Row],[Out]])=1,1,0),"") -> 1
B82: =TEXT(CIB[[#This Row],[Date]],"mmm-yyyy") -> يناير-2022 | C82: =IF(+CIB[[#This Row],[Due Date]]<=1/1/1900,"",+CIB[[#This Row],[Due Date]]) -> 2022-01-22 | D82: 71 | E82: 2022-01-22 | F82: 71 | H82: 10370 | I82: =+I81+CIB[[#This Row],[Deposits]]-CIB[[#This Row],[Payments]] -> 3574716.74 | J82: Current | K82: =+IF(CIB[[#This Row],[Due Date]]>TD,"Hold","") ->  | L82: =IFERROR(CIB[[#This Row],[Deposits]]-CIB[[#This Row],[Payments]],"") -> -10370 | M82: =IFERROR(IF(_xlfn.AGGREGATE(3,5,CIB[[#This Row],[Out]])=1,1,0),"") -> 1
B83: =TEXT(CIB[[#This Row],[Date]],"mmm-yyyy") -> فبراير-2022 | C83: =IF(+CIB[[#This Row],[Due Date]]<=1/1/1900,"",+CIB[[#This Row],[Due Date]]) -> 2022-02-22 | D83: 72 | E83: 2022-02-22 | F83: 72 | H83: 10370 | I83: =+I82+CIB[[#This Row],[Deposits]]-CIB[[#This Row],[Payments]] -> 3564346.74 | J83: Current | K83: =+IF(CIB[[#This Row],[Due Date]]>TD,"Hold","") ->  | L83: =IFERROR(CIB[[#This Row],[Deposits]]-CIB[[#This Row],[Payments]],"") -> -10370 | M83: =IFERROR(IF(_xlfn.AGGREGATE(3,5,CIB[[#This Row],[Out]])=1,1,0),"") -> 1
B84: =TEXT(CIB[[#This Row],[Date]],"mmm-yyyy") -> مارس-2022 | C84: =IF(+CIB[[#This Row],[Due Date]]<=1/1/1900,"",+CIB[[#This Row],[Due Date]]) -> 2022-03-22 | D84: 73 | E84: 2022-03-22 | F84: 73 | H84: 10370 | I84: =+I83+CIB[[#This Row],[Deposits]]-CIB[[#This Row],[Payments]] -> 3553976.74 | J84: Current | K84: =+IF(CIB[[#This Row],[Due Date]]>TD,"Hold","") ->  | L84: =IFERROR(CIB[[#This Row],[Deposits]]-CIB[[#This Row],[Payments]],"") -> -10370 | M84: =IFERROR(IF(_xlfn.AGGREGATE(3,5,CIB[[#This Row],[Out]])=1,1,0),"") -> 1
B85: =TEXT(CIB[[#This Row],[Date]],"mmm-yyyy") -> أبريل-2022 | C85: =IF(+CIB[[#This Row],[Due Date]]<=1/1/1900,"",+CIB[[#This Row],[Due Date]]) -> 2022-04-22 | D85: 74 | E85: 2022-04-22 | F85: 74 | H85: 10370 | I85: =+I84+CIB[[#This Row],[Deposits]]-CIB[[#This Row],[Payments]] -> 3543606.74 | J85: Current | K85: =+IF(CIB[[#This Row],[Due Date]]>TD,"Hold","") ->  | L85: =IFERROR(CIB[[#This Row],[Deposits]]-CIB[[#This Row],[Payments]],"") -> -10370 | M85: =IFERROR(IF(_xlfn.AGGREGATE(3,5,CIB[[#This Row],[Out]])=1,1,0),"") -> 1
B86: =TEXT(CIB[[#This Row],[Date]],"mmm-yyyy") -> مايو-2022 | C86: =IF(+CIB[[#This Row],[Due Date]]<=1/1/1900,"",+CIB[[#This Row],[Due Date]]) -> 2022-05-22 | D86: 75 | E86: 2022-05-22 | F86: 75 | H86: 10370 | I86: =+I85+CIB[[#This Row],[Deposits]]-CIB[[#This Row],[Payments]] -> 3533236.74 | J86: Current | K86: =+IF(CIB[[#This Row],[Due Date]]>TD,"Hold","") ->  | L86: =IFERROR(CIB[[#This Row],[Deposits]]-CIB[[#This Row],[Payments]],"") -> -10370 | M86: =IFERROR(IF(_xlfn.AGGREGATE(3,5,CIB[[#This Row],[Out]])=1,1,0),"") -> 1
B87: =TEXT(CIB[[#This Row],[Date]],"mmm-yyyy") -> يونيو-2022 | C87: =IF(+CIB[[#This Row],[Due Date]]<=1/1/1900,"",+CIB[[#This Row],[Due Date]]) -> 2022-06-22 | D87: 76 | E87: 2022-06-22 | F87: 76 | H87: 10370 | I87: =+I86+CIB[[#This Row],[Deposits]]-CIB[[#This Row],[Payments]] -> 3522866.74 | J87: Current | K87: =+IF(CIB[[#This Row],[Due Date]]>TD,"Hold","") ->  | L87: =IFERROR(CIB[[#This Row],[Deposits]]-CIB[[#This Row],[Payments]],"") -> -10370 | M87: =IFERROR(IF(_xlfn.AGGREGATE(3,5,CIB[[#This Row],[Out]])=1,1,0),"") -> 1
B88: =TEXT(CIB[[#This Row],[Date]],"mmm-yyyy") -> يوليو-2022 | C88: =IF(+CIB[[#This Row],[Due Date]]<=1/1/1900,"",+CIB[[#This Row],[Due Date]]) -> 2022-07-22 | D88: 77 | E88: 2022-07-22 | F88: 77 | H88: 10370 | I88: =+I87+CIB[[#This Row],[Deposits]]-CIB[[#This Row],[Payments]] -> 3512496.74 | J88: Current | K88: =+IF(CIB[[#This Row],[Due Date]]>TD,"Hold","") ->  | L88: =IFERROR(CIB[[#This Row],[Deposits]]-CIB[[#This Row],[Payments]],"") -> -10370 | M88: =IFERROR(IF(_xlfn.AGGREGATE(3,5,CIB[[#This Row],[Out]])=1,1,0),"") -> 1
B89: =TEXT(CIB[[#This Row],[Date]],"mmm-yyyy") -> أغسطس-2022 | C89: =IF(+CIB[[#This Row],[Due Date]]<=1/1/1900,"",+CIB[[#This Row],[Due Date]]) -> 2022-08-22 | D89: 78 | E89: 2022-08-22 | F89: 78 | H89: 10370 | I89: =+I88+CIB[[#This Row],[Deposits]]-CIB[[#This Row],[Payments]] -> 3502126.74 | J89: Current | K89: =+IF(CIB[[#This Row],[Due Date]]>TD,"Hold","") ->  | L89: =IFERROR(CIB[[#This Row],[Deposits]]-CIB[[#This Row],[Payments]],"") -> -10370 | M89: =IFERROR(IF(_xlfn.AGGREGATE(3,5,CIB[[#This Row],[Out]])=1,1,0),"") -> 1
B90: =TEXT(CIB[[#This Row],[Date]],"mmm-yyyy") -> سبتمبر-2022 | C90: =IF(+CIB[[#This Row],[Due Date]]<=1/1/1900,"",+CIB[[#This Row],[Due Date]]) -> 2022-09-22 | D90: 79 | E90: 2022-09-22 | F90: 79 | H90: 10370 | I90: =+I89+CIB[[#This Row],[Deposits]]-CIB[[#This Row],[Payments]] -> 3491756.74 | J90: Current | K90: =+IF(CIB[[#This Row],[Due Date]]>TD,"Hold","") ->  | L90: =IFERROR(CIB[[#This Row],[Deposits]]-CIB[[#This Row],[Payments]],"") -> -10370 | M90: =IFERROR(IF(_xlfn.AGGREGATE(3,5,CIB[[#This Row],[Out]])=1,1,0),"") -> 1
B91: =TEXT(CIB[[#This Row],[Date]],"mmm-yyyy") -> أكتوبر-2022 | C91: =IF(+CIB[[#This Row],[Due Date]]<=1/1/1900,"",+CIB[[#This Row],[Due Date]]) -> 2022-10-22 | D91: 80 | E91: 2022-10-22 | F91: 80 | H91: 10370 | I91: =+I90+CIB[[#This Row],[Deposits]]-CIB[[#This Row],[Payments]] -> 3481386.74 | J91: Not Due | K91: =+IF(CIB[[#This Row],[Due Date]]>TD,"Hold","") -> Hold | L91: =IFERROR(CIB[[#This Row],[Deposits]]-CIB[[#This Row],[Payments]],"") -> -10370 | M91: =IFERROR(IF(_xlfn.AGGREGATE(3,5,CIB[[#This Row],[Out]])=1,1,0),"") -> 1
B92: =TEXT(CIB[[#This Row],[Date]],"mmm-yyyy") -> نوفمبر-2022 | C92: =IF(+CIB[[#This Row],[Due Date]]<=1/1/1900,"",+CIB[[#This Row],[Due Date]]) -> 2022-11-22 | D92: 81 | E92: 2022-11-22 | F92: 81 | H92: 10370 | I92: =+I91+CIB[[#This Row],[Deposits]]-CIB[[#This Row],[Payments]] -> 3471016.74 | J92: Not Due | K92: =+IF(CIB[[#This Row],[Due Date]]>TD,"Hold","") -> Hold | L92: =IFERROR(CIB[[#This Row],[Deposits]]-CIB[[#This Row],[Payments]],"") -> -10370 | M92: =IFERROR(IF(_xlfn.AGGREGATE(3,5,CIB[[#This Row],[Out]])=1,1,0),"") -> 1
B93: =TEXT(CIB[[#This Row],[Date]],"mmm-yyyy") -> ديسمبر-2022 | C93: =IF(+CIB[[#This Row],[Due Date]]<=1/1/1900,"",+CIB[[#This Row],[Due Date]]) -> 2022-12-22 | D93: 82 | E93: 2022-12-22 | F93: 82 | H93: 10370 | I93: =+I92+CIB[[#This Row],[Deposits]]-CIB[[#This Row],[Payments]] -> 3460646.74 | J93: Not Due | K93: =+IF(CIB[[#This Row],[Due Date]]>TD,"Hold","") -> Hold | L93: =IFERROR(CIB[[#This Row],[Deposits]]-CIB[[#This Row],[Payments]],"") -> -10370 | M93: =IFERROR(IF(_xlfn.AGGREGATE(3,5,CIB[[#This Row],[Out]])=1,1,0),"") -> 1
B94: =TEXT(CIB[[#This Row],[Date]],"mmm-yyyy") -> يناير-2023 | C94: =IF(+CIB[[#This Row],[Due Date]]<=1/1/1900,"",+CIB[[#This Row],[Due Date]]) -> 2023-01-22 | D94: 83 | E94: 2023-01-22 | F94: 83 | H94: 10370 | I94: =+I93+CIB[[#This Row],[Deposits]]-CIB[[#This Row],[Payments]] -> 3450276.74 | J94: Not Due | K94: =+IF(CIB[[#This Row],[Due Date]]>TD,"Hold","") -> Hold | L94: =IFERROR(CIB[[#This Row],[Deposits]]-CIB[[#This Row],[Payments]],"") -> -10370 | M94: =IFERROR(IF(_xlfn.AGGREGATE(3,5,CIB[[#This Row],[Out]])=1,1,0),"") -> 1
B95: =TEXT(CIB[[#This Row],[Date]],"mmm-yyyy") -> فبراير-2023 | C95: =IF(+CIB[[#This Row],[Due Date]]<=1/1/1900,"",+CIB[[#This Row],[Due Date]]) -> 2023-02-22 | D95: 84 | E95: 2023-02-22 | F95: 84 | H95: 10370 | I95: =+I94+CIB[[#This Row],[Deposits]]-CIB[[#This Row],[Payments]] -> 3439906.74 | J95: Not Due | K95: =+IF(CIB[[#This Row],[Due Date]]>TD,"Hold","") -> Hold | L95: =IFERROR(CIB[[#This Row],[Deposits]]-CIB[[#This Row],[Payments]],"") -> -10370 | M95: =IFERROR(IF(_xlfn.AGGREGATE(3,5,CIB[[#This Row],[Out]])=1,1,0),"") -> 1
B96: =TEXT(CIB[[#This Row],[Date]],"mmm-yyyy") -> مارس-2023 | C96: =IF(+CIB[[#This Row],[Due Date]]<=1/1/1900,"",+CIB[[#This Row],[Due Date]]) -> 2023-03-22 | D96: 85 | E96: 2023-03-22 | F96: 85 | H96: 10370 | I96: =+I95+CIB[[#This Row],[Deposits]]-CIB[[#This Row],[Payments]] -> 3429536.74 | J96: Not Due | K96: =+IF(CIB[[#This Row],[Due Date]]>TD,"Hold","") -> Hold | L96: =IFERROR(CIB[[#This Row],[Deposits]]-CIB[[#This Row],[Payments]],"") -> -10370 | M96: =IFERROR(IF(_xlfn.AGGREGATE(3,5,CIB[[#This Row],[Out]])=1,1,0),"") -> 1
B97: =TEXT(CIB[[#This Row],[Date]],"mmm-yyyy") -> أبريل-2023 | C97: =IF(+CIB[[#This Row],[Due Date]]<=1/1/1900,"",+CIB[[#This Row],[Due Date]]) -> 2023-04-22 | D97: 86 | E97: 2023-04-22 | F97: 86 | H97: 10370 | I97: =+I96+CIB[[#This Row],[Deposits]]-CIB[[#This Row],[Payments]] -> 3419166.74 | J97: Not Due | K97: =+IF(CIB[[#This Row],[Due Date]]>TD,"Hold","") -> Hold | L97: =IFERROR(CIB[[#This Row],[Deposits]]-CIB[[#This Row],[Payments]],"") -> -10370 | M97: =IFERROR(IF(_xlfn.AGGREGATE(3,5,CIB[[#This Row],[Out]])=1,1,0),"") -> 1
B98: =TEXT(CIB[[#This Row],[Date]],"mmm-yyyy") -> مايو-2023 | C98: =IF(+CIB[[#This Row],[Due Date]]<=1/1/1900,"",+CIB[[#This Row],[Due Date]]) -> 2023-05-22 | D98: 87 | E98: 2023-05-22 | F98: 87 | H98: 10370 | I98: =+I97+CIB[[#This Row],[Deposits]]-CIB[[#This Row],[Payments]] -> 3408796.74 | J98: Not Due | K98: =+IF(CIB[[#This Row],[Due Date]]>TD,"Hold","") -> Hold | L98: =IFERROR(CIB[[#This Row],[Deposits]]-CIB[[#This Row],[Payments]],"") -> -10370 | M98: =IFERROR(IF(_xlfn.AGGREGATE(3,5,CIB[[#This Row],[Out]])=1,1,0),"") -> 1
B99: =TEXT(CIB[[#This Row],[Date]],"mmm-yyyy") -> يونيو-2023 | C99: =IF(+CIB[[#This Row],[Due Date]]<=1/1/1900,"",+CIB[[#This Row],[Due Date]]) -> 2023-06-22 | D99: 88 | E99: 2023-06-22 | F99: 88 | H99: 10370 | I99: =+I98+CIB[[#This Row],[Deposits]]-CIB[[#This Row],[Payments]] -> 3398426.74 | J99: Not Due | K99: =+IF(CIB[[#This Row],[Due Date]]>TD,"Hold","") -> Hold | L99: =IFERROR(CIB[[#This Row],[Deposits]]-CIB[[#This Row],[Payments]],"") -> -10370 | M99: =IFERROR(IF(_xlfn.AGGREGATE(3,5,CIB[[#This Row],[Out]])=1,1,0),"") -> 1
B100: =TEXT(CIB[[#This Row],[Date]],"mmm-yyyy") -> يوليو-2023 | C100: =IF(+CIB[[#This Row],[Due Date]]<=1/1/1900,"",+CIB[[#This Row],[Due Date]]) -> 2023-07-22 | D100: 89 | E100: 2023-07-22 | F100: 89 | H100: 10370 | I100: =+I99+CIB[[#This Row],[Deposits]]-CIB[[#This Row],[Payments]] -> 3388056.74 | J100: Not Due | K100: =+IF(CIB[[#This Row],[Due Date]]>TD,"Hold","") -> Hold | L100: =IFERROR(CIB[[#This Row],[Deposits]]-CIB[[#This Row],[Payments]],"") -> -10370 | M100: =IFERROR(IF(_xlfn.AGGREGATE(3,5,CIB[[#This Row],[Out]])=1,1,0),"") -> 1
B101: =TEXT(CIB[[#This Row],[Date]],"mmm-yyyy") -> أغسطس-2023 | C101: =IF(+CIB[[#This Row],[Due Date]]<=1/1/1900,"",+CIB[[#This Row],[Due Date]]) -> 2023-08-22 | D101: 90 | E101: 2023-08-22 | F101: 90 | H101: 10370 | I101: =+I100+CIB[[#This Row],[Deposits]]-CIB[[#This Row],[Payments]] -> 3377686.74 | J101: Not Due | K101: =+IF(CIB[[#This Row],[Due Date]]>TD,"Hold","") -> Hold | L101: =IFERROR(CIB[[#This Row],[Deposits]]-CIB[[#This Row],[Payments]],"") -> -10370
B102: =TEXT(CIB[[#This Row],[Date]],"mmm-yyyy") -> سبتمبر-2023 | C102: =IF(+CIB[[#This Row],[Due Date]]<=1/1/1900,"",+CIB[[#This Row],[Due Date]]) -> 2023-09-22 | D102: 91 | E102: 2023-09-22 | F102: 91 | H102: 10370 | I102: =+I101+CIB[[#This Row],[Deposits]]-CIB[[#This Row],[Payments]] -> 3367316.74 | J102: Not Due | K102: =+IF(CIB[[#This Row],[Due Date]]>TD,"Hold","") -> Hold | L102: =IFERROR(CIB[[#This Row],[Deposits]]-CIB[[#This Row],[Payments]],"") -> -10370
B103: =TEXT(CIB[[#This Row],[Date]],"mmm-yyyy") -> أكتوبر-2023 | C103: =IF(+CIB[[#This Row],[Due Date]]<=1/1/1900,"",+CIB[[#This Row],[Due Date]]) -> 2023-10-22 | D103: 92 | E103: 2023-10-22 | F103: 92 | H103: 10370 | I103: =+I102+CIB[[#This Row],[Deposits]]-CIB[[#This Row],[Payments]] -> 3356946.74 | J103: Not Due | K103: =+IF(CIB[[#This Row],[Due Date]]>TD,"Hold","") -> Hold | L103: =IFERROR(CIB[[#This Row],[Deposits]]-CIB[[#This Row],[Payments]],"") -> -10370 | M103: =IFERROR(IF(_xlfn.AGGREGATE(3,5,CIB[[#This Row],[Out]])=1,1,0),"") -> 1
B104: =TEXT(CIB[[#This Row],[Date]],"mmm-yyyy") -> نوفمبر-2023 | C104: =IF(+CIB[[#This Row],[Due Date]]<=1/1/1900,"",+CIB[[#This Row],[Due Date]]) -> 2023-11-22 | D104: 93 | E104: 2023-11-22 | F104: 93 | H104: 10599 | I104: =+I103+CIB[[#This Row],[Deposits]]-CIB[[#This Row],[Payments]] -> 3346347.74 | J104: Not Due | K104: =+IF(CIB[[#This Row],[Due Date]]>TD,"Hold","") -> Hold | L104: =IFERROR(CIB[[#This Row],[Deposits]]-CIB[[#This Row],[Payments]],"") -> -10599 | M104: =IFERROR(IF(_xlfn.AGGREGATE(3,5,CIB[[#This Row],[Out]])=1,1,0),"") -> 1
B105: =TEXT(CIB[[#This Row],[Date]],"mmm-yyyy") -> نوفمبر-2022 | C105: =IF(+CIB[[#This Row],[Due Date]]<=1/1/1900,"",+CIB[[#This Row],[Due Date]]) -> 2022-11-22 | D105: 94 | E105: 2022-11-22 | F105: 94 | H105: 7550 | I105: =+I104+CIB[[#This Row],[Deposits]]-CIB[[#This Row],[Payments]] -> 3338797.74 | J105: Not Due | K105: =+IF(CIB[[#This Row],[Due Date]]>TD,"Hold","") -> Hold | L105: =IFERROR(CIB[[#This Row],[Deposits]]-CIB[[#This Row],[Payments]],"") -> -7550 | M105: =IFERROR(IF(_xlfn.AGGREGATE(3,5,CIB[[#This Row],[Out]])=1,1,0),"") -> 1
B106: =TEXT(CIB[[#This Row],[Date]],"mmm-yyyy") -> نوفمبر-2021 | C106: =IF(+CIB[[#This Row],[Due Date]]<=1/1/1900,"",+CIB[[#This Row],[Due Date]]) -> 2021-11-01 | D106: 95 | E106: 2021-11-01 | F106: 95 | H106: 5000 | I106: =+I105+CIB[[#This Row],[Deposits]]-CIB[[#This Row],[Payments]] -> 3333797.74 | J106: Current | K106: =+IF(CIB[[#This Row],[Due Date]]>TD,"Hold","") ->  | L106: =IFERROR(CIB[[#This Row],[Deposits]]-CIB[[#This Row],[Payments]],"") -> -5000 | M106: =IFERROR(IF(_xlfn.AGGREGATE(3,5,CIB[[#This Row],[Out]])=1,1,0),"") -> 1
B107: =TEXT(CIB[[#This Row],[Date]],"mmm-yyyy") -> ديسمبر-2021 | C107: =IF(+CIB[[#This Row],[Due Date]]<=1/1/1900,"",+CIB[[#This Row],[Due Date]]) -> 2021-12-29 | D107: 96 | E107: 2021-12-29 | F107: 96 | H107: 300000 | I107: =+I106+CIB[[#This Row],[Deposits]]-CIB[[#This Row],[Payments]] -> 3033797.74 | J107: Current | K107: =+IF(CIB[[#This Row],[Due Date]]>TD,"Hold","") ->  | L107: =IFERROR(CIB[[#This Row],[Deposits]]-CIB[[#This Row],[Payments]],"") -> -300000 | M107: =IFERROR(IF(_xlfn.AGGREGATE(3,5,CIB[[#This Row],[Out]])=1,1,0),"") -> 1
B108: =TEXT(CIB[[#This Row],[Date]],"mmm-yyyy") -> ديسمبر-2021 | C108: =IF(+CIB[[#This Row],[Due Date]]<=1/1/1900,"",+CIB[[#This Row],[Due Date]]) -> 2021-12-29 | D108: 97 | E108: 2021-12-29 | F108: 97 | H108: 300000 | I108: =+I107+CIB[[#This Row],[Deposits]]-CIB[[#This Row],[Payments]] -> 2733797.74 | J108: Current | K108: =+IF(CIB[[#This Row],[Due Date]]>TD,"Hold","") ->  | L108: =IFERROR(CIB[[#This Row],[Deposits]]-CIB[[#This Row],[Payments]],"") -> -300000 | M108: =IFERROR(IF(_xlfn.AGGREGATE(3,5,CIB[[#This Row],[Out]])=1,1,0),"") -> 1
B109: =TEXT(CIB[[#This Row],[Date]],"mmm-yyyy") -> ديسمبر-2021 | C109: =IF(+CIB[[#This Row],[Due Date]]<=1/1/1900,"",+CIB[[#This Row],[Due Date]]) -> 2021-12-29 | D109: 98 | E109: 2021-12-29 | F109: 98 | H109: 300000 | I109: =+I108+CIB[[#This Row],[Deposits]]-CIB[[#This Row],[Payments]] -> 2433797.74 | J109: Current | K109: =+IF(CIB[[#This Row],[Due Date]]>TD,"Hold","") ->  | L109: =IFERROR(CIB[[#This Row],[Deposits]]-CIB[[#This Row],[Payments]],"") -> -300000 | M109: =IFERROR(IF(_xlfn.AGGREGATE(3,5,CIB[[#This Row],[Out]])=1,1,0),"") -> 1
B110: =TEXT(CIB[[#This Row],[Date]],"mmm-yyyy") -> يناير-2022 | C110: =IF(+CIB[[#This Row],[Due Date]]<=1/1/1900,"",+CIB[[#This Row],[Due Date]]) -> 2022-01-31 | D110: 99 | E110: 2022-01-31 | F110: 99 | H110: =2640+18+18+300+18+228+75+150+228+162.42 -> 3837.42 | I110: =+I109+CIB[[#This Row],[Deposits]]-CIB[[#This Row],[Payments]] -> 2429960.32 | J110: Current | K110: =+IF(CIB[[#This Row],[Due Date]]>TD,"Hold","") ->  | L110: =IFERROR(CIB[[#This Row],[Deposits]]-CIB[[#This Row],[Payments]],"") -> -3837.42 | M110: =IFERROR(IF(_xlfn.AGGREGATE(3,5,CIB[[#This Row],[Out]])=1,1,0),"") -> 1
B111: =TEXT(CIB[[#This Row],[Date]],"mmm-yyyy") -> يناير-2022 | C111: =IF(+CIB[[#This Row],[Due Date]]<=1/1/1900,"",+CIB[[#This Row],[Due Date]]) -> 2022-01-02 | D111: 100 | E111: 2022-01-02 | F111: 100 | H111: 2500000 | I111: =+I110+CIB[[#This Row],[Deposits]]-CIB[[#This Row],[Payments]] -> -70039.68 | J111: Current | K111: =+IF(CIB[[#This Row],[Due Date]]>TD,"Hold","") ->  | L111: =IFERROR(CIB[[#This Row],[Deposits]]-CIB[[#This Row],[Payments]],"") -> -2500000 | M111: =IFERROR(IF(_xlfn.AGGREGATE(3,5,CIB[[#This Row],[Out]])=1,1,0),"") -> 1
B112: =TEXT(CIB[[#This Row],[Date]],"mmm-yyyy") -> يناير-2022 | C112: =IF(+CIB[[#This Row],[Due Date]]<=1/1/1900,"",+CIB[[#This Row],[Due Date]]) -> 2022-01-02 | D112: 101 | E112: 2022-01-02 | F112: 101 | G112: 1125 | I112: =+I111+CIB[[#This Row],[Deposits]]-CIB[[#This Row],[Payments]] -> -68914.68 | J112: Current | K112: =+IF(CIB[[#This Row],[Due Date]]>TD,"Hold","") ->  | L112: =IFERROR(CIB[[#This Row],[Deposits]]-CIB[[#This Row],[Payments]],"") -> 1125 | M112: =IFERROR(IF(_xlfn.AGGREGATE(3,5,CIB[[#This Row],[Out]])=1,1,0),"") -> 1
B113: =TEXT(CIB[[#This Row],[Date]],"mmm-yyyy") -> يناير-2022 | C113: =IF(+CIB[[#This Row],[Due Date]]<=1/1/1900,"",+CIB[[#This Row],[Due Date]]) -> 2022-01-02 | D113: 102 | E113: 2022-01-02 | F113: 102 | G113: 1350 | I113: =+I112+CIB[[#This Row],[Deposits]]-CIB[[#This Row],[Payments]] -> -67564.68 | J113: Current | K113: =+IF(CIB[[#This Row],[Due Date]]>TD,"Hold","") ->  | L113: =IFERROR(CIB[[#This Row],[Deposits]]-CIB[[#This Row],[Payments]],"") -> 1350 | M113: =IFERROR(IF(_xlfn.AGGREGATE(3,5,CIB[[#This Row],[Out]])=1,1,0),"") -> 1
B114: =TEXT(CIB[[#This Row],[Date]],"mmm-yyyy") -> يناير-2022 | C114: =IF(+CIB[[#This Row],[Due Date]]<=1/1/1900,"",+CIB[[#This Row],[Due Date]]) -> 2022-01-02 | D114: 103 | E114: 2022-01-02 | F114: 103 | G114: 28229.56 | I114: =+I113+CIB[[#This Row],[Deposits]]-CIB[[#This Row],[Payments]] -> -39335.12 | J114: Current | K114: =+IF(CIB[[#This Row],[Due Date]]>TD,"Hold","") ->  | L114: =IFERROR(CIB[[#This Row],[Deposits]]-CIB[[#This Row],[Payments]],"") -> 28229.56 | M114: =IFERROR(IF(_xlfn.AGGREGATE(3,5,CIB[[#This Row],[Out]])=1,1,0),"") -> 1
B115: =TEXT(CIB[[#This Row],[Date]],"mmm-yyyy") -> يناير-2022 | C115: =IF(+CIB[[#This Row],[Due Date]]<=1/1/1900,"",+CIB[[#This Row],[Due Date]]) -> 2022-01-02 | D115: 104 | E115: 2022-01-02 | F115: 104 | G115: 18716.1 | I115: =+I114+CIB[[#This Row],[Deposits]]-CIB[[#This Row],[Payments]] -> -20619.02 | J115: Current | K115: =+IF(CIB[[#This Row],[Due Date]]>TD,"Hold","") ->  | L115: =IFERROR(CIB[[#This Row],[Deposits]]-CIB[[#This Row],[Payments]],"") -> 18716.1 | M115: =IFERROR(IF(_xlfn.AGGREGATE(3,5,CIB[[#This Row],[Out]])=1,1,0),"") -> 1
B116: =TEXT(CIB[[#This Row],[Date]],"mmm-yyyy") -> يناير-2022 | C116: =IF(+CIB[[#This Row],[Due Date]]<=1/1/1900,"",+CIB[[#This Row],[Due Date]]) -> 2022-01-02 | D116: 105 | E116: 2022-01-02 | F116: 105 | G116: 8.55 | I116: =+I115+CIB[[#This Row],[Deposits]]-CIB[[#This Row],[Payments]] -> -20610.47 | J116: Current | K116: =+IF(CIB[[#This Row],[Due Date]]>TD,"Hold","") ->  | L116: =IFERROR(CIB[[#This Row],[Deposits]]-CIB[[#This Row],[Payments]],"") -> 8.55 | M116: =IFERROR(IF(_xlfn.AGGREGATE(3,5,CIB[[#This Row],[Out]])=1,1,0),"") -> 1
B117: =TEXT(CIB[[#This Row],[Date]],"mmm-yyyy") -> يناير-2022 | C117: =IF(+CIB[[#This Row],[Due Date]]<=1/1/1900,"",+CIB[[#This Row],[Due Date]]) -> 2022-01-02 | D117: 106 | E117: 2022-01-02 | F117: 106 | G117: 2500 | I117: =+I116+CIB[[#This Row],[Deposits]]-CIB[[#This Row],[Payments]] -> -18110.47 | J117: Current | K117: =+IF(CIB[[#This Row],[Due Date]]>TD,"Hold","") ->  | L117: =IFERROR(CIB[[#This Row],[Deposits]]-CIB[[#This Row],[Payments]],"") -> 2500 | M117: =IFERROR(IF(_xlfn.AGGREGATE(3,5,CIB[[#This Row],[Out]])=1,1,0),"") -> 1
B118: =TEXT(CIB[[#This Row],[Date]],"mmm-yyyy") -> يناير-2022 | C118: =IF(+CIB[[#This Row],[Due Date]]<=1/1/1900,"",+CIB[[#This Row],[Due Date]]) -> 2022-01-02 | D118: 107 | E118: 2022-01-02 | F118: 107 | G118: 2000 | I118: =+I117+CIB[[#This Row],[Deposits]]-CIB[[#This Row],[Payments]] -> -16110.47 | J118: Current | K118: =+IF(CIB[[#This Row],[Due Date]]>TD,"Hold","") ->  | L118: =IFERROR(CIB[[#This Row],[Deposits]]-CIB[[#This Row],[Payments]],"") -> 2000 | M118: =IFERROR(IF(_xlfn.AGGREGATE(3,5,CIB[[#This Row],[Out]])=1,1,0),"") -> 1
B119: =TEXT(CIB[[#This Row],[Date]],"mmm-yyyy") -> يناير-2022 | C119: =IF(+CIB[[#This Row],[Due Date]]<=1/1/1900,"",+CIB[[#This Row],[Due Date]]) -> 2022-01-02 | D119: 108 | E119: 2022-01-02 | F119: 108 | G119: 900 | I119: =+I118+CIB[[#This Row],[Deposits]]-CIB[[#This Row],[Payments]] -> -15210.47 | J119: Current | K119: =+IF(CIB[[#This Row],[Due Date]]>TD,"Hold","") ->  | L119: =IFERROR(CIB[[#This Row],[Deposits]]-CIB[[#This Row],[Payments]],"") -> 900 | M119: =IFERROR(IF(_xlfn.AGGREGATE(3,5,CIB[[#This Row],[Out]])=1,1,0),"") -> 1
B120: =TEXT(CIB[[#This Row],[Date]],"mmm-yyyy") -> يناير-2022 | C120: =IF(+CIB[[#This Row],[Due Date]]<=1/1/1900,"",+CIB[[#This Row],[Due Date]]) -> 2022-01-02 | D120: 109 | E120: 2022-01-02 | F120: 109 | G120: 1125 | I120: =+I119+CIB[[#This Row],[Deposits]]-CIB[[#This Row],[Payments]] -> -14085.47 | J120: Current | K120: =+IF(CIB[[#This Row],[Due Date]]>TD,"Hold","") ->  | L120: =IFERROR(CIB[[#This Row],[Deposits]]-CIB[[#This Row],[Payments]],"") -> 1125 | M120: =IFERROR(IF(_xlfn.AGGREGATE(3,5,CIB[[#This Row],[Out]])=1,1,0),"") -> 1
B121: =TEXT(CIB[[#This Row],[Date]],"mmm-yyyy") -> يناير-2022 | C121: =IF(+CIB[[#This Row],[Due Date]]<=1/1/1900,"",+CIB[[#This Row],[Due Date]]) -> 2022-01-02 | D121: 110 | E121: 2022-01-02 | F121: 110 | G121: 1584859.65 | I121: =+I120+CIB[[#This Row],[Deposits]]-CIB[[#This Row],[Payments]] -> 1570774.18 | J121: Current | K121: =+IF(CIB[[#This Row],[Due Date]]>TD,"Hold","") ->  | L121: =IFERROR(CIB[[#This Row],[Deposits]]-CIB[[#This Row],[Payments]],"") -> 1584859.65 | M121: =IFERROR(IF(_xlfn.AGGREGATE(3,5,CIB[[#This Row],[Out]])=1,1,0),"") -> 1
B122: =TEXT(CIB[[#This Row],[Date]],"mmm-yyyy") -> يناير-2022 | C122: =IF(+CIB[[#This Row],[Due Date]]<=1/1/1900,"",+CIB[[#This Row],[Due Date]]) -> 2022-01-02 | D122: 111 | E122: 2022-01-02 | F122: 111 | G122: 55421 | I122: =+I121+CIB[[#This Row],[Deposits]]-CIB[[#This Row],[Payments]] -> 1626195.18 | J122: Current | K122: =+IF(CIB[[#This Row],[Due Date]]>TD,"Hold","") ->  | L122: =IFERROR(CIB[[#This Row],[Deposits]]-CIB[[#This Row],[Payments]],"") -> 55421 | M122: =IFERROR(IF(_xlfn.AGGREGATE(3,5,CIB[[#This Row],[Out]])=1,1,0),"") -> 1
B123: =TEXT(CIB[[#This Row],[Date]],"mmm-yyyy") -> يناير-2022 | C123: =IF(+CIB[[#This Row],[Due Date]]<=1/1/1900,"",+CIB[[#This Row],[Due Date]]) -> 2022-01-02 | D123: 112 | E123: 2022-01-02 | F123: 112 | G123: 900 | I123: =+I122+CIB[[#This Row],[Deposits]]-CIB[[#This Row],[Payments]] -> 1627095.18 | J123: Current | K123: =+IF(CIB[[#This Row],[Due Date]]>TD,"Hold","") ->  | L123: =IFERROR(CIB[[#This Row],[Deposits]]-CIB[[#This Row],[Payments]],"") -> 900 | M123: =IFERROR(IF(_xlfn.AGGREGATE(3,5,CIB[[#This Row],[Out]])=1,1,0),"") -> 1
B124: =TEXT(CIB[[#This Row],[Date]],"mmm-yyyy") -> يناير-2022 | C124: =IF(+CIB[[#This Row],[Due Date]]<=1/1/1900,"",+CIB[[#This Row],[Due Date]]) -> 2022-01-02 | D124: 113 | E124: 2022-01-02 | F124: 113 | H124: 55005 | I124: =+I123+CIB[[#This Row],[Deposits]]-CIB[[#This Row],[Payments]] -> 1572090.18 | J124: Current | K124: =+IF(CIB[[#This Row],[Due Date]]>TD,"Hold","") ->  | L124: =IFERROR(CIB[[#This Row],[Deposits]]-CIB[[#This Row],[Payments]],"") -> -55005 | M124: =IFERROR(IF(_xlfn.AGGREGATE(3,5,CIB[[#This Row],[Out]])=1,1,0),"") -> 1
B125: =TEXT(CIB[[#This Row],[Date]],"mmm-yyyy") -> يناير-2022 | C125: =IF(+CIB[[#This Row],[Due Date]]<=1/1/1900,"",+CIB[[#This Row],[Due Date]]) -> 2022-01-02 | D125: 114 | E125: 2022-01-02 | F125: 114 | H125: 26500 | I125: =+I124+CIB[[#This Row],[Deposits]]-CIB[[#This Row],[Payments]] -> 1545590.18 | J125: Current | K125: =+IF(CIB[[#This Row],[Due Date]]>TD,"Hold","") ->  | L125: =IFERROR(CIB[[#This Row],[Deposits]]-CIB[[#This Row],[Payments]],"") -> -26500 | M125: =IFERROR(IF(_xlfn.AGGREGATE(3,5,CIB[[#This Row],[Out]])=1,1,0),"") -> 1
B126: =TEXT(CIB[[#This Row],[Date]],"mmm-yyyy") -> يناير-2022 | C126: =IF(+CIB[[#This Row],[Due Date]]<=1/1/1900,"",+CIB[[#This Row],[Due Date]]) -> 2022-01-02 | D126: 115 | E126: 2022-01-02 | F126: 115 | H126: 2134 | I126: =+I125+CIB[[#This Row],[Deposits]]-CIB[[#This Row],[Payments]] -> 1543456.18 | J126: Current | K126: =+IF(CIB[[#This Row],[Due Date]]>TD,"Hold","") ->  | L126: =IFERROR(CIB[[#This Row],[Deposits]]-CIB[[#This Row],[Payments]],"") -> -2134 | M126: =IFERROR(IF(_xlfn.AGGREGATE(3,5,CIB[[#This Row],[Out]])=1,1,0),"") -> 1
B127: =TEXT(CIB[[#This Row],[Date]],"mmm-yyyy") -> يناير-2022 | C127: =IF(+CIB[[#This Row],[Due Date]]<=1/1/1900,"",+CIB[[#This Row],[Due Date]]) -> 2022-01-02 | D127: 116 | E127: 2022-01-02 | F127: 116 | H127: 59251.5 | I127: =+I126+CIB[[#This Row],[Deposits]]-CIB[[#This Row],[Payments]] -> 1484204.68 | J127: Current | K127: =+IF(CIB[[#This Row],[Due Date]]>TD,"Hold","") ->  | L127: =IFERROR(CIB[[#This Row],[Deposits]]-CIB[[#This Row],[Payments]],"") -> -59251.5 | M127: =IFERROR(IF(_xlfn.AGGREGATE(3,5,CIB[[#This Row],[Out]])=1,1,0),"") -> 1
B128: =TEXT(CIB[[#This Row],[Date]],"mmm-yyyy") -> يناير-2022 | C128: =IF(+CIB[[#This Row],[Due Date]]<=1/1/1900,"",+CIB[[#This Row],[Due Date]]) -> 2022-01-02 | D128: 117 | E128: 2022-01-02 | F128: 117 | H128: 50000 | I128: =+I127+CIB[[#This Row],[Deposits]]-CIB[[#This Row],[Payments]] -> 1434204.68 | J128: Current | K128: =+IF(CIB[[#This Row],[Due Date]]>TD,"Hold","") ->  | L128: =IFERROR(CIB[[#This Row],[Deposits]]-CIB[[#This Row],[Payments]],"") -> -50000 | M128: =IFERROR(IF(_xlfn.AGGREGATE(3,5,CIB[[#This Row],[Out]])=1,1,0),"") -> 1
B129: =TEXT(CIB[[#This Row],[Date]],"mmm-yyyy") -> يناير-2022 | C129: =IF(+CIB[[#This Row],[Due Date]]<=1/1/1900,"",+CIB[[#This Row],[Due Date]]) -> 2022-01-02 | D129: 118 | E129: 2022-01-02 | F129: 118 | H129: 50000 | I129: =+I128+CIB[[#This Row],[Deposits]]-CIB[[#This Row],[Payments]] -> 1384204.68 | J129: Current | K129: =+IF(CIB[[#This Row],[Due Date]]>TD,"Hold","") ->  | L129: =IFERROR(CIB[[#This Row],[Deposits]]-CIB[[#This Row],[Payments]],"") -> -50000 | M129: =IFERROR(IF(_xlfn.AGGREGATE(3,5,CIB[[#This Row],[Out]])=1,1,0),"") -> 1
B130: =TEXT(CIB[[#This Row],[Date]],"mmm-yyyy") -> يناير-2022 | C130: =IF(+CIB[[#This Row],[Due Date]]<=1/1/1900,"",+CIB[[#This Row],[Due Date]]) -> 2022-01-02 | D130: 119 | E130: 2022-01-02 | F130: 119 | H130: 44350.8 | I130: =+I129+CIB[[#This Row],[Deposits]]-CIB[[#This Row],[Payments]] -> 1339853.88 | J130: Current | K130: =+IF(CIB[[#This Row],[Due Date]]>TD,"Hold","") ->  | L130: =IFERROR(CIB[[#This Row],[Deposits]]-CIB[[#This Row],[Payments]],"") -> -44350.8 | M130: =IFERROR(IF(_xlfn.AGGREGATE(3,5,CIB[[#This Row],[Out]])=1,1,0),"") -> 1
B131: =TEXT(CIB[[#This Row],[Date]],"mmm-yyyy") -> يناير-2022 | C131: =IF(+CIB[[#This Row],[Due Date]]<=1/1/1900,"",+CIB[[#This Row],[Due Date]]) -> 2022-01-02 | D131: 120 | E131: 2022-01-02 | F131: 120 | G131: 24713.57 | I131: =+I130+CIB[[#This Row],[Deposits]]-CIB[[#This Row],[Payments]] -> 1364567.45 | J131: Current | K131: =+IF(CIB[[#This Row],[Due Date]]>TD,"Hold","") ->  | L131: =IFERROR(CIB[[#This Row],[Deposits]]-CIB[[#This Row],[Payments]],"") -> 24713.57 | M131: =IFERROR(IF(_xlfn.AGGREGATE(3,5,CIB[[#This Row],[Out]])=1,1,0),"") -> 1
B132: =TEXT(CIB[[#This Row],[Date]],"mmm-yyyy") -> يناير-2022 | C132: =IF(+CIB[[#This Row],[Due Date]]<=1/1/1900,"",+CIB[[#This Row],[Due Date]]) -> 2022-01-02 | D132: 121 | E132: 2022-01-02 | F132: 121 | G132: 2250 | I132: =+I131+CIB[[#This Row],[Deposits]]-CIB[[#This Row],[Payments]] -> 1366817.45 | J132: Current | K132: =+IF(CIB[[#This Row],[Due Date]]>TD,"Hold","") ->  | L132: =IFERROR(CIB[[#This Row],[Deposits]]-CIB[[#This Row],[Payments]],"") -> 2250 | M132: =IFERROR(IF(_xlfn.AGGREGATE(3,5,CIB[[#This Row],[Out]])=1,1,0),"") -> 1
B133: =TEXT(CIB[[#This Row],[Date]],"mmm-yyyy") -> يناير-2022 | C133: =IF(+CIB[[#This Row],[Due Date]]<=1/1/1900,"",+CIB[[#This Row],[Due Date]]) -> 2022-01-02 | D133: 122 | E133: 2022-01-02 | F133: 122 | G133: 2250 | I133: =+I132+CIB[[#This Row],[Deposits]]-CIB[[#This Row],[Payments]] -> 1369067.45 | J133: Current | K133: =+IF(CIB[[#This Row],[Due Date]]>TD,"Hold","") ->  | L133: =IFERROR(CIB[[#This Row],[Deposits]]-CIB[[#This Row],[Payments]],"") -> 2250 | M133: =IFERROR(IF(_xlfn.AGGREGATE(3,5,CIB[[#This Row],[Out]])=1,1,0),"") -> 1
B134: =TEXT(CIB[[#This Row],[Date]],"mmm-yyyy") -> يناير-2022 | C134: =IF(+CIB[[#This Row],[Due Date]]<=1/1/1900,"",+CIB[[#This Row],[Due Date]]) -> 2022-01-02 | D134: 123 | E134: 2022-01-02 | F134: 123 | G134: 99132 | I134: =+I133+CIB[[#This Row],[Deposits]]-CIB[[#This Row],[Payments]] -> 1468199.45 | J134: Current | K134: =+IF(CIB[[#This Row],[Due Date]]>TD,"Hold","") ->  | L134: =IFERROR(CIB[[#This Row],[Deposits]]-CIB[[#This Row],[Payments]],"") -> 99132 | M134: =IFERROR(IF(_xlfn.AGGREGATE(3,5,CIB[[#This Row],[Out]])=1,1,0),"") -> 1
B135: =TEXT(CIB[[#This Row],[Date]],"mmm-yyyy") -> يناير-2022 | C135: =IF(+CIB[[#This Row],[Due Date]]<=1/1/1900,"",+CIB[[#This Row],[Due Date]]) -> 2022-01-02 | D135: 124 | E135: 2022-01-02 | F135: 124 | G135: 94621.72 | I135: =+I134+CIB[[#This Row],[Deposits]]-CIB[[#This Row],[Payments]] -> 1562821.17 | J135: Current | K135: =+IF(CIB[[#This Row],[Due Date]]>TD,"Hold","") ->  | L135: =IFERROR(CIB[[#This Row],[Deposits]]-CIB[[#This Row],[Payments]],"") -> 94621.72 | M135: =IFERROR(IF(_xlfn.AGGREGATE(3,5,CIB[[#This Row],[Out]])=1,1,0),"") -> 1
B136: =TEXT(CIB[[#This Row],[Date]],"mmm-yyyy") -> يناير-2022 | C136: =IF(+CIB[[#This Row],[Due Date]]<=1/1/1900,"",+CIB[[#This Row],[Due Date]]) -> 2022-01-02 | D136: 125 | E136: 2022-01-02 | F136: 125 | G136: 1050 | I136: =+I135+CIB[[#This Row],[Deposits]]-CIB[[#This Row],[Payments]] -> 1563871.17 | J136: Current | K136: =+IF(CIB[[#This Row],[Due Date]]>TD,"Hold","") ->  | L136: =IFERROR(CIB[[#This Row],[Deposits]]-CIB[[#This Row],[Payments]],"") -> 1050 | M136: =IFERROR(IF(_xlfn.AGGREGATE(3,5,CIB[[#This Row],[Out]])=1,1,0),"") -> 1
B137: =TEXT(CIB[[#This Row],[Date]],"mmm-yyyy") -> يناير-2022 | C137: =IF(+CIB[[#This Row],[Due Date]]<=1/1/1900,"",+CIB[[#This Row],[Due Date]]) -> 2022-01-02 | D137: 126 | E137: 2022-01-02 | F137: 126 | G137: 1575 | I137: =+I136+CIB[[#This Row],[Deposits]]-CIB[[#This Row],[Payments]] -> 1565446.17 | J137: Current | K137: =+IF(CIB[[#This Row],[Due Date]]>TD,"Hold","") ->  | L137: =IFERROR(CIB[[#This Row],[Deposits]]-CIB[[#This Row],[Payments]],"") -> 1575 | M137: =IFERROR(IF(_xlfn.AGGREGATE(3,5,CIB[[#This Row],[Out]])=1,1,0),"") -> 1
B138: =TEXT(CIB[[#This Row],[Date]],"mmm-yyyy") -> يناير-2022 | C138: =IF(+CIB[[#This Row],[Due Date]]<=1/1/1900,"",+CIB[[#This Row],[Due Date]]) -> 2022-01-02 | D138: 127 | E138: 2022-01-02 | F138: 127 | G138: 1575 | I138: =+I137+CIB[[#This Row],[Deposits]]-CIB[[#This Row],[Payments]] -> 1567021.17 | J138: Current | K138: =+IF(CIB[[#This Row],[Due Date]]>TD,"Hold","") ->  | L138: =IFERROR(CIB[[#This Row],[Deposits]]-CIB[[#This Row],[Payments]],"") -> 1575 | M138: =IFERROR(IF(_xlfn.AGGREGATE(3,5,CIB[[#This Row],[Out]])=1,1,0),"") -> 1
B139: =TEXT(CIB[[#This Row],[Date]],"mmm-yyyy") -> يناير-2022 | C139: =IF(+CIB[[#This Row],[Due Date]]<=1/1/1900,"",+CIB[[#This Row],[Due Date]]) -> 2022-01-02 | D139: 128 | E139: 2022-01-02 | F139: 128 | G139: 1500 | I139: =+I138+CIB[[#This Row],[Deposits]]-CIB[[#This Row],[Payments]] -> 1568521.17 | J139: Current | K139: =+IF(CIB[[#This Row],[Due Date]]>TD,"Hold","") ->  | L139: =IFERROR(CIB[[#This Row],[Deposits]]-CIB[[#This Row],[Payments]],"") -> 1500 | M139: =IFERROR(IF(_xlfn.AGGREGATE(3,5,CIB[[#This Row],[Out]])=1,1,0),"") -> 1
B140: =TEXT(CIB[[#This Row],[Date]],"mmm-yyyy") -> يناير-2022 | C140: =IF(+CIB[[#This Row],[Due Date]]<=1/1/1900,"",+CIB[[#This Row],[Due Date]]) -> 2022-01-03 | D140: 129 | E140: 2022-01-03 | F140: 129 | H140: 250000 | I140: =+I139+CIB[[#This Row],[Deposits]]-CIB[[#This Row],[Payments]] -> 1318521.17 | J140: Current | K140: =+IF(CIB[[#This Row],[Due Date]]>TD,"Hold","") ->  | L140: =IFERROR(CIB[[#This Row],[Deposits]]-CIB[[#This Row],[Payments]],"") -> -250000 | M140: =IFERROR(IF(_xlfn.AGGREGATE(3,5,CIB[[#This Row],[Out]])=1,1,0),"") -> 1
B141: =TEXT(CIB[[#This Row],[Date]],"mmm-yyyy") -> يناير-2022 | C141: =IF(+CIB[[#This Row],[Due Date]]<=1/1/1900,"",+CIB[[#This Row],[Due Date]]) -> 2022-01-03 | D141: 130 | E141: 2022-01-03 | F141: 130 | H141: 250000 | I141: =+I140+CIB[[#This Row],[Deposits]]-CIB[[#This Row],[Payments]] -> 1068521.17 | J141: Current | K141: =+IF(CIB[[#This Row],[Due Date]]>TD,"Hold","") ->  | L141: =IFERROR(CIB[[#This Row],[Deposits]]-CIB[[#This Row],[Payments]],"") -> -250000 | M141: =IFERROR(IF(_xlfn.AGGREGATE(3,5,CIB[[#This Row],[Out]])=1,1,0),"") -> 1
B142: =TEXT(CIB[[#This Row],[Date]],"mmm-yyyy") -> يناير-2022 | C142: =IF(+CIB[[#This Row],[Due Date]]<=1/1/1900,"",+CIB[[#This Row],[Due Date]]) -> 2022-01-04 | D142: 131 | E142: 2022-01-04 | F142: 131 | H142: 30000 | I142: =+I141+CIB[[#This Row],[Deposits]]-CIB[[#This Row],[Payments]] -> 1038521.17 | J142: Current | K142: =+IF(CIB[[#This Row],[Due Date]]>TD,"Hold","") ->  | L142: =IFERROR(CIB[[#This Row],[Deposits]]-CIB[[#This Row],[Payments]],"") -> -30000 | M142: =IFERROR(IF(_xlfn.AGGREGATE(3,5,CIB[[#This Row],[Out]])=1,1,0),"") -> 1
B143: =TEXT(CIB[[#This Row],[Date]],"mmm-yyyy") -> يناير-2022 | C143: =IF(+CIB[[#This Row],[Due Date]]<=1/1/1900,"",+CIB[[#This Row],[Due Date]]) -> 2022-01-04 | D143: 132 | E143: 2022-01-04 | F143: 132 | H143: 20730 | I143: =+I142+CIB[[#This Row],[Deposits]]-CIB[[#This Row],[Payments]] -> 1017791.17 | J143: Current | K143: =+IF(CIB[[#This Row],[Due Date]]>TD,"Hold","") ->  | L143: =IFERROR(CIB[[#This Row],[Deposits]]-CIB[[#This Row],[Payments]],"") -> -20730 | M143: =IFERROR(IF(_xlfn.AGGREGATE(3,5,CIB[[#This Row],[Out]])=1,1,0),"") -> 1
B144: =TEXT(CIB[[#This Row],[Date]],"mmm-yyyy") -> يناير-2022 | C144: =IF(+CIB[[#This Row],[Due Date]]<=1/1/1900,"",+CIB[[#This Row],[Due Date]]) -> 2022-01-04 | D144: 133 | E144: 2022-01-04 | F144: 133 | H144: 3390 | I144: =+I143+CIB[[#This Row],[Deposits]]-CIB[[#This Row],[Payments]] -> 1014401.17 | J144: Current | K144: =+IF(CIB[[#This Row],[Due Date]]>TD,"Hold","") ->  | L144: =IFERROR(CIB[[#This Row],[Deposits]]-CIB[[#This Row],[Payments]],"") -> -3390 | M144: =IFERROR(IF(_xlfn.AGGREGATE(3,5,CIB[[#This Row],[Out]])=1,1,0),"") -> 1
B145: =TEXT(CIB[[#This Row],[Date]],"mmm-yyyy") -> يناير-2022 | C145: =IF(+CIB[[#This Row],[Due Date]]<=1/1/1900,"",+CIB[[#This Row],[Due Date]]) -> 2022-01-04 | D145: 134 | E145: 2022-01-04 | F145: 134 | H145: 9722.66 | I145: =+I144+CIB[[#This Row],[Deposits]]-CIB[[#This Row],[Payments]] -> 1004678.51 | J145: Current | K145: =+IF(CIB[[#This Row],[Due Date]]>TD,"Hold","") ->  | L145: =IFERROR(CIB[[#This Row],[Deposits]]-CIB[[#This Row],[Payments]],"") -> -9722.66 | M145: =IFERROR(IF(_xlfn.AGGREGATE(3,5,CIB[[#This Row],[Out]])=1,1,0),"") -> 1
B146: =TEXT(CIB[[#This Row],[Date]],"mmm-yyyy") -> يناير-2022 | C146: =IF(+CIB[[#This Row],[Due Date]]<=1/1/1900,"",+CIB[[#This Row],[Due Date]]) -> 2022-01-04 | D146: 135 | E146: 2022-01-04 | F146: 135 | H146: 100000 | I146: =+I145+CIB[[#This Row],[Deposits]]-CIB[[#This Row],[Payments]] -> 904678.51 | J146: Current | K146: =+IF(CIB[[#This Row],[Due Date]]>TD,"Hold","") ->  | L146: =IFERROR(CIB[[#This Row],[Deposits]]-CIB[[#This Row],[Payments]],"") -> -100000 | M146: =IFERROR(IF(_xlfn.AGGREGATE(3,5,CIB[[#This Row],[Out]])=1,1,0),"") -> 1
B147: =TEXT(CIB[[#This Row],[Date]],"mmm-yyyy") -> يناير-2022 | C147: =IF(+CIB[[#This Row],[Due Date]]<=1/1/1900,"",+CIB[[#This Row],[Due Date]]) -> 2022-01-04 | D147: 136 | E147: 2022-01-04 | F147: 136 | H147: 7053.75 | I147: =+I146+CIB[[#This Row],[Deposits]]-CIB[[#This Row],[Payments]] -> 897624.76 | J147: Current | K147: =+IF(CIB[[#This Row],[Due Date]]>TD,"Hold","") ->  | L147: =IFERROR(CIB[[#This Row],[Deposits]]-CIB[[#This Row],[Payments]],"") -> -7053.75 | M147: =IFERROR(IF(_xlfn.AGGREGATE(3,5,CIB[[#This Row],[Out]])=1,1,0),"") -> 1
B148: =TEXT(CIB[[#This Row],[Date]],"mmm-yyyy") -> يناير-2022 | C148: =IF(+CIB[[#This Row],[Due Date]]<=1/1/1900,"",+CIB[[#This Row],[Due Date]]) -> 2022-01-04 | D148: 137 | E148: 2022-01-04 | F148: 137 | H148: 35659.32 | I148: =+I147+CIB[[#This Row],[Deposits]]-CIB[[#This Row],[Payments]] -> 861965.44 | J148: Current | K148: =+IF(CIB[[#This Row],[Due Date]]>TD,"Hold","") ->  | L148: =IFERROR(CIB[[#This Row],[Deposits]]-CIB[[#This Row],[Payments]],"") -> -35659.32 | M148: =IFERROR(IF(_xlfn.AGGREGATE(3,5,CIB[[#This Row],[Out]])=1,1,0),"") -> 1
B149: =TEXT(CIB[[#This Row],[Date]],"mmm-yyyy") -> يناير-2022 | C149: =IF(+CIB[[#This Row],[Due Date]]<=1/1/1900,"",+CIB[[#This Row],[Due Date]]) -> 2022-01-04 | D149: 138 | E149: 2022-01-04 | F149: 138 | H149: 70000 | I149: =+I148+CIB[[#This Row],[Deposits]]-CIB[[#This Row],[Payments]] -> 791965.44 | J149: Current | K149: =+IF(CIB[[#This Row],[Due Date]]>TD,"Hold","") ->  | L149: =IFERROR(CIB[[#This Row],[Deposits]]-CIB[[#This Row],[Payments]],"") -> -70000 | M149: =IFERROR(IF(_xlfn.AGGREGATE(3,5,CIB[[#This Row],[Out]])=1,1,0),"") -> 1
B150: =TEXT(CIB[[#This Row],[Date]],"mmm-yyyy") -> يناير-2022 | C150: =IF(+CIB[[#This Row],[Due Date]]<=1/1/1900,"",+CIB[[#This Row],[Due Date]]) -> 2022-01-04 | D150: 139 | E150: 2022-01-04 | F150: 139 | H150: 150000 | I150: =+I149+CIB[[#This Row],[Deposits]]-CIB[[#This Row],[Payments]] -> 641965.44 | J150: Current | K150: =+IF(CIB[[#This Row],[Due Date]]>TD,"Hold","") ->  | L150: =IFERROR(CIB[[#This Row],[Deposits]]-CIB[[#This Row],[Payments]],"") -> -150000 | M150: =IFERROR(IF(_xlfn.AGGREGATE(3,5,CIB[[#This Row],[Out]])=1,1,0),"") -> 1
B151: =TEXT(CIB[[#This Row],[Date]],"mmm-yyyy") -> يناير-2022 | C151: =IF(+CIB[[#This Row],[Due Date]]<=1/1/1900,"",+CIB[[#This Row],[Due Date]]) -> 2022-01-04 | D151: 140 | E151: 2022-01-04 | F151: 140 | H151: 87419.48 | I151: =+I150+CIB[[#This Row],[Deposits]]-CIB[[#This Row],[Payments]] -> 554545.96 | J151: Current | K151: =+IF(CIB[[#This Row],[Due Date]]>TD,"Hold","") ->  | L151: =IFERROR(CIB[[#This Row],[Deposits]]-CIB[[#This Row],[Payments]],"") -> -87419.48 | M151: =IFERROR(IF(_xlfn.AGGREGATE(3,5,CIB[[#This Row],[Out]])=1,1,0),"") -> 1
B152: =TEXT(CIB[[#This Row],[Date]],"mmm-yyyy") -> يناير-2022 | C152: =IF(+CIB[[#This Row],[Due Date]]<=1/1/1900,"",+CIB[[#This Row],[Due Date]]) -> 2022-01-04 | D152: 141 | E152: 2022-01-04 | F152: 141 | H152: 60000 | I152: =+I151+CIB[[#This Row],[Deposits]]-CIB[[#This Row],[Payments]] -> 494545.96 | J152: Current | K152: =+IF(CIB[[#This Row],[Due Date]]>TD,"Hold","") ->  | L152: =IFERROR(CIB[[#This Row],[Deposits]]-CIB[[#This Row],[Payments]],"") -> -60000 | M152: =IFERROR(IF(_xlfn.AGGREGATE(3,5,CIB[[#This Row],[Out]])=1,1,0),"") -> 1
B153: =TEXT(CIB[[#This Row],[Date]],"mmm-yyyy") -> يناير-2022 | C153: =IF(+CIB[[#This Row],[Due Date]]<=1/1/1900,"",+CIB[[#This Row],[Due Date]]) -> 2022-01-04 | D153: 142 | E153: 2022-01-04 | F153: 142 | H153: 219647.35 | I153: =+I152+CIB[[#This Row],[Deposits]]-CIB[[#This Row],[Payments]] -> 274898.61 | J153: Current | K153: =+IF(CIB[[#This Row],[Due Date]]>TD,"Hold","") ->  | L153: =IFERROR(CIB[[#This Row],[Deposits]]-CIB[[#This Row],[Payments]],"") -> -219647.35 | M153: =IFERROR(IF(_xlfn.AGGREGATE(3,5,CIB[[#This Row],[Out]])=1,1,0),"") -> 1
B154: =TEXT(CIB[[#This Row],[Date]],"mmm-yyyy") -> يناير-2022 | C154: =IF(+CIB[[#This Row],[Due Date]]<=1/1/1900,"",+CIB[[#This Row],[Due Date]]) -> 2022-01-04 | D154: 143 | E154: 2022-01-04 | F154: 143 | H154: 52522.45 | I154: =+I153+CIB[[#This Row],[Deposits]]-CIB[[#This Row],[Payments]] -> 222376.16 | J154: Current | K154: =+IF(CIB[[#This Row],[Due Date]]>TD,"Hold","") ->  | L154: =IFERROR(CIB[[#This Row],[Deposits]]-CIB[[#This Row],[Payments]],"") -> -52522.45 | M154: =IFERROR(IF(_xlfn.AGGREGATE(3,5,CIB[[#This Row],[Out]])=1,1,0),"") -> 1
B155: =TEXT(CIB[[#This Row],[Date]],"mmm-yyyy") -> يناير-2022 | C155: =IF(+CIB[[#This Row],[Due Date]]<=1/1/1900,"",+CIB[[#This Row],[Due Date]]) -> 2022-01-04 | D155: 144 | E155: 2022-01-04 | F155: 144 | H155: 150000 | I155: =+I154+CIB[[#This Row],[Deposits]]-CIB[[#This Row],[Payments]] -> 72376.16 | J155: Current | K155: =+IF(CIB[[#This Row],[Due Date]]>TD,"Hold","") ->  | L155: =IFERROR(CIB[[#This Row],[Deposits]]-CIB[[#This Row],[Payments]],"") -> -150000 | M155: =IFERROR(IF(_xlfn.AGGREGATE(3,5,CIB[[#This Row],[Out]])=1,1,0),"") -> 1
B156: =TEXT(CIB[[#This Row],[Date]],"mmm-yyyy") -> يناير-2022 | C156: =IF(+CIB[[#This Row],[Due Date]]<=1/1/1900,"",+CIB[[#This Row],[Due Date]]) -> 2022-01-04 | D156: 145 | E156: 2022-01-04 | F156: 145 | H156: 20000 | I156: =+I155+CIB[[#This Row],[Deposits]]-CIB[[#This Row],[Payments]] -> 52376.16 | J156: Current | K156: =+IF(CIB[[#This Row],[Due Date]]>TD,"Hold","") ->  | L156: =IFERROR(CIB[[#This Row],[Deposits]]-CIB[[#This Row],[Payments]],"") -> -20000 | M156: =IFERROR(IF(_xlfn.AGGREGATE(3,5,CIB[[#This Row],[Out]])=1,1,0),"") -> 1
B157: =TEXT(CIB[[#This Row],[Date]],"mmm-yyyy") -> يناير-2022 | C157: =IF(+CIB[[#This Row],[Due Date]]<=1/1/1900,"",+CIB[[#This Row],[Due Date]]) -> 2022-01-04 | D157: 146 | E157: 2022-01-04 | F157: 146 | H157: 40609.8 | I157: =+I156+CIB[[#This Row],[Deposits]]-CIB[[#This Row],[Payments]] -> 11766.36 | J157: Current | K157: =+IF(CIB[[#This Row],[Due Date]]>TD,"Hold","") ->  | L157: =IFERROR(CIB[[#This Row],[Deposits]]-CIB[[#This Row],[Payments]],"") -> -40609.8 | M157: =IFERROR(IF(_xlfn.AGGREGATE(3,5,CIB[[#This Row],[Out]])=1,1,0),"") -> 1
B158: =TEXT(CIB[[#This Row],[Date]],"mmm-yyyy") -> يناير-2022 | C158: =IF(+CIB[[#This Row],[Due Date]]<=1/1/1900,"",+CIB[[#This Row],[Due Date]]) -> 2022-01-04 | D158: 147 | E158: 2022-01-04 | F158: 147 | H158: 150000 | I158: =+I157+CIB[[#This Row],[Deposits]]-CIB[[#This Row],[Payments]] -> -138233.64 | J158: Current | K158: =+IF(CIB[[#This Row],[Due Date]]>TD,"Hold","") ->  | L158: =IFERROR(CIB[[#This Row],[Deposits]]-CIB[[#This Row],[Payments]],"") -> -150000 | M158: =IFERROR(IF(_xlfn.AGGREGATE(3,5,CIB[[#This Row],[Out]])=1,1,0),"") -> 1
B159: =TEXT(CIB[[#This Row],[Date]],"mmm-yyyy") -> يناير-2022 | C159: =IF(+CIB[[#This Row],[Due Date]]<=1/1/1900,"",+CIB[[#This Row],[Due Date]]) -> 2022-01-04 | D159: 148 | E159: 2022-01-04 | F159: 148 | H159: 250000 | I159: =+I158+CIB[[#This Row],[Deposits]]-CIB[[#This Row],[Payments]] -> -388233.64 | J159: Current | K159: =+IF(CIB[[#This Row],[Due Date]]>TD,"Hold","") ->  | L159: =IFERROR(CIB[[#This Row],[Deposits]]-CIB[[#This Row],[Payments]],"") -> -250000 | M159: =IFERROR(IF(_xlfn.AGGREGATE(3,5,CIB[[#This Row],[Out]])=1,1,0),"") -> 1
B160: =TEXT(CIB[[#This Row],[Date]],"mmm-yyyy") -> يناير-2022 | C160: =IF(+CIB[[#This Row],[Due Date]]<=1/1/1900,"",+CIB[[#This Row],[Due Date]]) -> 2022-01-04 | D160: 149 | E160: 2022-01-04 | F160: 149 | H160: 32670.99 | I160: =+I159+CIB[[#This Row],[Deposits]]-CIB[[#This Row],[Payments]] -> -420904.63 | J160: Current | K160: =+IF(CIB[[#This Row],[Due Date]]>TD,"Hold","") ->  | L160: =IFERROR(CIB[[#This Row],[Deposits]]-CIB[[#This Row],[Payments]],"") -> -32670.99 | M160: =IFERROR(IF(_xlfn.AGGREGATE(3,5,CIB[[#This Row],[Out]])=1,1,0),"") -> 1
B161: =TEXT(CIB[[#This Row],[Date]],"mmm-yyyy") -> يناير-2022 | C161: =IF(+CIB[[#This Row],[Due Date]]<=1/1/1900,"",+CIB[[#This Row],[Due Date]]) -> 2022-01-04 | D161: 150 | E161: 2022-01-04 | F161: 150 | H161: 9979.2 | I161: =+I160+CIB[[#This Row],[Deposits]]-CIB[[#This Row],[Payments]] -> -430883.83 | J161: Current | K161: =+IF(CIB[[#This Row],[Due Date]]>TD,"Hold","") ->  | L161: =IFERROR(CIB[[#This Row],[Deposits]]-CIB[[#This Row],[Payments]],"") -> -9979.2 | M161: =IFERROR(IF(_xlfn.AGGREGATE(3,5,CIB[[#This Row],[Out]])=1,1,0),"") -> 1
B162: =TEXT(CIB[[#This Row],[Date]],"mmm-yyyy") -> يناير-2022 | C162: =IF(+CIB[[#This Row],[Due Date]]<=1/1/1900,"",+CIB[[#This Row],[Due Date]]) -> 2022-01-04 | D162: 151 | E162: 2022-01-04 | F162: 151 | H162: 38339.58 | I162: =+I161+CIB[[#This Row],[Deposits]]-CIB[[#This Row],[Payments]] -> -469223.41 | J162: Current | K162: =+IF(CIB[[#This Row],[Due Date]]>TD,"Hold","") ->  | L162: =IFERROR(CIB[[#This Row],[Deposits]]-CIB[[#This Row],[Payments]],"") -> -38339.58 | M162: =IFERROR(IF(_xlfn.AGGREGATE(3,5,CIB[[#This Row],[Out]])=1,1,0),"") -> 1
B163: =TEXT(CIB[[#This Row],[Date]],"mmm-yyyy") -> يناير-2022 | C163: =IF(+CIB[[#This Row],[Due Date]]<=1/1/1900,"",+CIB[[#This Row],[Due Date]]) -> 2022-01-04 | D163: 152 | E163: 2022-01-04 | F163: 152 | H163: 10454.4 | I163: =+I162+CIB[[#This Row],[Deposits]]-CIB[[#This Row],[Payments]] -> -479677.81 | J163: Current | K163: =+IF(CIB[[#This Row],[Due Date]]>TD,"Hold","") ->  | L163: =IFERROR(CIB[[#This Row],[Deposits]]-CIB[[#This Row],[Payments]],"") -> -10454.4 | M163: =IFERROR(IF(_xlfn.AGGREGATE(3,5,CIB[[#This Row],[Out]])=1,1,0),"") -> 1
B164: =TEXT(CIB[[#This Row],[Date]],"mmm-yyyy") -> يناير-2022 | C164: =IF(+CIB[[#This Row],[Due Date]]<=1/1/1900,"",+CIB[[#This Row],[Due Date]]) -> 2022-01-04 | D164: 153 | E164: 2022-01-04 | F164: 153 | H164: 30789 | I164: =+I163+CIB[[#This Row],[Deposits]]-CIB[[#This Row],[Payments]] -> -510466.81 | J164: Current | K164: =+IF(CIB[[#This Row],[Due Date]]>TD,"Hold","") ->  | L164: =IFERROR(CIB[[#This Row],[Deposits]]-CIB[[#This Row],[Payments]],"") -> -30789 | M164: =IFERROR(IF(_xlfn.AGGREGATE(3,5,CIB[[#This Row],[Out]])=1,1,0),"") -> 1
B165: =TEXT(CIB[[#This Row],[Date]],"mmm-yyyy") -> يناير-2022 | C165: =IF(+CIB[[#This Row],[Due Date]]<=1/1/1900,"",+CIB[[#This Row],[Due Date]]) -> 2022-01-04 | D165: 154 | E165: 2022-01-04 | F165: 154 | G165: 41519.21 | I165: =+I164+CIB[[#This Row],[Deposits]]-CIB[[#This Row],[Payments]] -> -468947.6 | J165: Current | K165: =+IF(CIB[[#This Row],[Due Date]]>TD,"Hold","") ->  | L165: =IFERROR(CIB[[#This Row],[Deposits]]-CIB[[#This Row],[Payments]],"") -> 41519.21 | M165: =IFERROR(IF(_xlfn.AGGREGATE(3,5,CIB[[#This Row],[Out]])=1,1,0),"") -> 1
B166: =TEXT(CIB[[#This Row],[Date]],"mmm-yyyy") -> يناير-2022 | C166: =IF(+CIB[[#This Row],[Due Date]]<=1/1/1900,"",+CIB[[#This Row],[Due Date]]) -> 2022-01-04 | D166: 155 | E166: 2022-01-04 | F166: 155 | G166: 1200 | I166: =+I165+CIB[[#This Row],[Deposits]]-CIB[[#This Row],[Payments]] -> -467747.6 | J166: Current | K166: =+IF(CIB[[#This Row],[Due Date]]>TD,"Hold","") ->  | L166: =IFERROR(CIB[[#This Row],[Deposits]]-CIB[[#This Row],[Payments]],"") -> 1200 | M166: =IFERROR(IF(_xlfn.AGGREGATE(3,5,CIB[[#This Row],[Out]])=1,1,0),"") -> 1
B167: =TEXT(CIB[[#This Row],[Date]],"mmm-yyyy") -> يناير-2022 | C167: =IF(+CIB[[#This Row],[Due Date]]<=1/1/1900,"",+CIB[[#This Row],[Due Date]]) -> 2022-01-04 | D167: 156 | E167: 2022-01-04 | F167: 156 | G167: 1350 | I167: =+I166+CIB[[#This Row],[Deposits]]-CIB[[#This Row],[Payments]] -> -466397.6 | J167: Current | K167: =+IF(CIB[[#This Row],[Due Date]]>TD,"Hold","") ->  | L167: =IFERROR(CIB[[#This Row],[Deposits]]-CIB[[#This Row],[Payments]],"") -> 1350 | M167: =IFERROR(IF(_xlfn.AGGREGATE(3,5,CIB[[#This Row],[Out]])=1,1,0),"") -> 1
B168: =TEXT(CIB[[#This Row],[Date]],"mmm-yyyy") -> يناير-2022 | C168: =IF(+CIB[[#This Row],[Due Date]]<=1/1/1900,"",+CIB[[#This Row],[Due Date]]) -> 2022-01-04 | D168: 157 | E168: 2022-01-04 | F168: 157 | G168: 1575 | I168: =+I167+CIB[[#This Row],[Deposits]]-CIB[[#This Row],[Payments]] -> -464822.6 | J168: Current | K168: =+IF(CIB[[#This Row],[Due Date]]>TD,"Hold","") ->  | L168: =IFERROR(CIB[[#This Row],[Deposits]]-CIB[[#This Row],[Payments]],"") -> 1575 | M168: =IFERROR(IF(_xlfn.AGGREGATE(3,5,CIB[[#This Row],[Out]])=1,1,0),"") -> 1
B169: =TEXT(CIB[[#This Row],[Date]],"mmm-yyyy") -> يناير-2022 | C169: =IF(+CIB[[#This Row],[Due Date]]<=1/1/1900,"",+CIB[[#This Row],[Due Date]]) -> 2022-01-04 | D169: 158 | E169: 2022-01-04 | F169: 158 | G169: 225 | I169: =+I168+CIB[[#This Row],[Deposits]]-CIB[[#This Row],[Payments]] -> -464597.6 | J169: Current | K169: =+IF(CIB[[#This Row],[Due Date]]>TD,"Hold","") ->  | L169: =IFERROR(CIB[[#This Row],[Deposits]]-CIB[[#This Row],[Payments]],"") -> 225 | M169: =IFERROR(IF(_xlfn.AGGREGATE(3,5,CIB[[#This Row],[Out]])=1,1,0),"") -> 1
B170: =TEXT(CIB[[#This Row],[Date]],"mmm-yyyy") -> يناير-2022 | C170: =IF(+CIB[[#This Row],[Due Date]]<=1/1/1900,"",+CIB[[#This Row],[Due Date]]) -> 2022-01-04 | D170: 159 | E170: 2022-01-04 | F170: 159 | G170: 1200 | I170: =+I169+CIB[[#This Row],[Deposits]]-CIB[[#This Row],[Payments]] -> -463397.6 | J170: Current | K170: =+IF(CIB[[#This Row],[Due Date]]>TD,"Hold","") ->  | L170: =IFERROR(CIB[[#This Row],[Deposits]]-CIB[[#This Row],[Payments]],"") -> 1200 | M170: =IFERROR(IF(_xlfn.AGGREGATE(3,5,CIB[[#This Row],[Out]])=1,1,0),"") -> 1
B171: =TEXT(CIB[[#This Row],[Date]],"mmm-yyyy") -> يناير-2022 | C171: =IF(+CIB[[#This Row],[Due Date]]<=1/1/1900,"",+CIB[[#This Row],[Due Date]]) -> 2022-01-04 | D171: 160 | E171: 2022-01-04 | F171: 160 | G171: 1250 | I171: =+I170+CIB[[#This Row],[Deposits]]-CIB[[#This Row],[Payments]] -> -462147.6 | J171: Current | K171: =+IF(CIB[[#This Row],[Due Date]]>TD,"Hold","") ->  | L171: =IFERROR(CIB[[#This Row],[Deposits]]-CIB[[#This Row],[Payments]],"") -> 1250 | M171: =IFERROR(IF(_xlfn.AGGREGATE(3,5,CIB[[#This Row],[Out]])=1,1,0),"") -> 1
B172: =TEXT(CIB[[#This Row],[Date]],"mmm-yyyy") -> يناير-2022 | C172: =IF(+CIB[[#This Row],[Due Date]]<=1/1/1900,"",+CIB[[#This Row],[Due Date]]) -> 2022-01-04 | D172: 161 | E172: 2022-01-04 | F172: 161 | G172: 1500 | I172: =+I171+CIB[[#This Row],[Deposits]]-CIB[[#This Row],[Payments]] -> -460647.6 | J172: Current | K172: =+IF(CIB[[#This Row],[Due Date]]>TD,"Hold","") ->  | L172: =IFERROR(CIB[[#This Row],[Deposits]]-CIB[[#This Row],[Payments]],"") -> 1500 | M172: =IFERROR(IF(_xlfn.AGGREGATE(3,5,CIB[[#This Row],[Out]])=1,1,0),"") -> 1
B173: =TEXT(CIB[[#This Row],[Date]],"mmm-yyyy") -> يناير-2022 | C173: =IF(+CIB[[#This Row],[Due Date]]<=1/1/1900,"",+CIB[[#This Row],[Due Date]]) -> 2022-01-04 | D173: 162 | E173: 2022-01-04 | F173: 162 | G173: 180865 | I173: =+I172+CIB[[#This Row],[Deposits]]-CIB[[#This Row],[Payments]] -> -279782.6 | J173: Current | K173: =+IF(CIB[[#This Row],[Due Date]]>TD,"Hold","") ->  | L173: =IFERROR(CIB[[#This Row],[Deposits]]-CIB[[#This Row],[Payments]],"") -> 180865 | M173: =IFERROR(IF(_xlfn.AGGREGATE(3,5,CIB[[#This Row],[Out]])=1,1,0),"") -> 1
B174: =TEXT(CIB[[#This Row],[Date]],"mmm-yyyy") -> يناير-2022 | C174: =IF(+CIB[[#This Row],[Due Date]]<=1/1/1900,"",+CIB[[#This Row],[Due Date]]) -> 2022-01-04 | D174: 163 | E174: 2022-01-04 | F174: 163 | G174: 1350 | I174: =+I173+CIB[[#This Row],[Deposits]]-CIB[[#This Row],[Payments]] -> -278432.6 | J174: Current | K174: =+IF(CIB[[#This Row],[Due Date]]>TD,"Hold","") ->  | L174: =IFERROR(CIB[[#This Row],[Deposits]]-CIB[[#This Row],[Payments]],"") -> 1350 | M174: =IFERROR(IF(_xlfn.AGGREGATE(3,5,CIB[[#This Row],[Out]])=1,1,0),"") -> 1
B175: =TEXT(CIB[[#This Row],[Date]],"mmm-yyyy") -> يناير-2022 | C175: =IF(+CIB[[#This Row],[Due Date]]<=1/1/1900,"",+CIB[[#This Row],[Due Date]]) -> 2022-01-04 | D175: 164 | E175: 2022-01-04 | F175: 164 | G175: 900 | I175: =+I174+CIB[[#This Row],[Deposits]]-CIB[[#This Row],[Payments]] -> -277532.6 | J175: Current | K175: =+IF(CIB[[#This Row],[Due Date]]>TD,"Hold","") ->  | L175: =IFERROR(CIB[[#This Row],[Deposits]]-CIB[[#This Row],[Payments]],"") -> 900 | M175: =IFERROR(IF(_xlfn.AGGREGATE(3,5,CIB[[#This Row],[Out]])=1,1,0),"") -> 1
B176: =TEXT(CIB[[#This Row],[Date]],"mmm-yyyy") -> يناير-2022 | C176: =IF(+CIB[[#This Row],[Due Date]]<=1/1/1900,"",+CIB[[#This Row],[Due Date]]) -> 2022-01-04 | D176: 165 | E176: 2022-01-04 | F176: 165 | G176: 24390 | I176: =+I175+CIB[[#This Row],[Deposits]]-CIB[[#This Row],[Payments]] -> -253142.6 | J176: Current | K176: =+IF(CIB[[#This Row],[Due Date]]>TD,"Hold","") ->  | L176: =IFERROR(CIB[[#This Row],[Deposits]]-CIB[[#This Row],[Payments]],"") -> 24390 | M176: =IFERROR(IF(_xlfn.AGGREGATE(3,5,CIB[[#This Row],[Out]])=1,1,0),"") -> 1
B177: =TEXT(CIB[[#This Row],[Date]],"mmm-yyyy") -> يناير-2022 | C177: =IF(+CIB[[#This Row],[Due Date]]<=1/1/1900,"",+CIB[[#This Row],[Due Date]]) -> 2022-01-04 | D177: 166 | E177: 2022-01-04 | F177: 166 | G177: 1350 | I177: =+I176+CIB[[#This Row],[Deposits]]-CIB[[#This Row],[Payments]] -> -251792.6 | J177: Current | K177: =+IF(CIB[[#This Row],[Due Date]]>TD,"Hold","") ->  | L177: =IFERROR(CIB[[#This Row],[Deposits]]-CIB[[#This Row],[Payments]],"") -> 1350 | M177: =IFERROR(IF(_xlfn.AGGREGATE(3,5,CIB[[#This Row],[Out]])=1,1,0),"") -> 1
B178: =TEXT(CIB[[#This Row],[Date]],"mmm-yyyy") -> يناير-2022 | C178: =IF(+CIB[[#This Row],[Due Date]]<=1/1/1900,"",+CIB[[#This Row],[Due Date]]) -> 2022-01-04 | D178: 167 | E178: 2022-01-04 | F178: 167 | G178: 1200 | I178: =+I177+CIB[[#This Row],[Deposits]]-CIB[[#This Row],[Payments]] -> -250592.6 | J178: Current | K178: =+IF(CIB[[#This Row],[Due Date]]>TD,"Hold","") ->  | L178: =IFERROR(CIB[[#This Row],[Deposits]]-CIB[[#This Row],[Payments]],"") -> 1200 | M178: =IFERROR(IF(_xlfn.AGGREGATE(3,5,CIB[[#This Row],[Out]])=1,1,0),"") -> 1
B179: =TEXT(CIB[[#This Row],[Date]],"mmm-yyyy") -> يناير-2022 | C179: =IF(+CIB[[#This Row],[Due Date]]<=1/1/1900,"",+CIB[[#This Row],[Due Date]]) -> 2022-01-04 | D179: 168 | E179: 2022-01-04 | F179: 168 | G179: 3375 | I179: =+I178+CIB[[#This Row],[Deposits]]-CIB[[#This Row],[Payments]] -> -247217.6 | J179: Current | K179: =+IF(CIB[[#This Row],[Due Date]]>TD,"Hold","") ->  | L179: =IFERROR(CIB[[#This Row],[Deposits]]-CIB[[#This Row],[Payments]],"") -> 3375 | M179: =IFERROR(IF(_xlfn.AGGREGATE(3,5,CIB[[#This Row],[Out]])=1,1,0),"") -> 1
B180: =TEXT(CIB[[#This Row],[Date]],"mmm-yyyy") -> يناير-2022 | C180: =IF(+CIB[[#This Row],[Due Date]]<=1/1/1900,"",+CIB[[#This Row],[Due Date]]) -> 2022-01-04 | D180: 169 | E180: 2022-01-04 | F180: 169 | H180: 61814.53 | I180: =+I179+CIB[[#This Row],[Deposits]]-CIB[[#This Row],[Payments]] -> -309032.13 | J180: Current | K180: =+IF(CIB[[#This Row],[Due Date]]>TD,"Hold","") ->  | L180: =IFERROR(CIB[[#This Row],[Deposits]]-CIB[[#This Row],[Payments]],"") -> -61814.53 | M180: =IFERROR(IF(_xlfn.AGGREGATE(3,5,CIB[[#This Row],[Out]])=1,1,0),"") -> 1
B181: =TEXT(CIB[[#This Row],[Date]],"mmm-yyyy") -> يناير-2022 | C181: =IF(+CIB[[#This Row],[Due Date]]<=1/1/1900,"",+CIB[[#This Row],[Due Date]]) -> 2022-01-04 | D181: 170 | E181: 2022-01-04 | F181: 170 | H181: 46557.13 | I181: =+I180+CIB[[#This Row],[Deposits]]-CIB[[#This Row],[Payments]] -> -355589.26 | J181: Current | K181: =+IF(CIB[[#This Row],[Due Date]]>TD,"Hold","") ->  | L181: =IFERROR(CIB[[#This Row],[Deposits]]-CIB[[#This Row],[Payments]],"") -> -46557.13 | M181: =IFERROR(IF(_xlfn.AGGREGATE(3,5,CIB[[#This Row],[Out]])=1,1,0),"") -> 1
B182: =TEXT(CIB[[#This Row],[Date]],"mmm-yyyy") -> يناير-2022 | C182: =IF(+CIB[[#This Row],[Due Date]]<=1/1/1900,"",+CIB[[#This Row],[Due Date]]) -> 2022-01-04 | D182: 171 | E182: 2022-01-04 | F182: 171 | H182: 14612.4 | I182: =+I181+CIB[[#This Row],[Deposits]]-CIB[[#This Row],[Payments]] -> -370201.66 | J182: Current | K182: =+IF(CIB[[#This Row],[Due Date]]>TD,"Hold","") ->  | L182: =IFERROR(CIB[[#This Row],[Deposits]]-CIB[[#This Row],[Payments]],"") -> -14612.4 | M182: =IFERROR(IF(_xlfn.AGGREGATE(3,5,CIB[[#This Row],[Out]])=1,1,0),"") -> 1
B183: =TEXT(CIB[[#This Row],[Date]],"mmm-yyyy") -> يناير-2022 | C183: =IF(+CIB[[#This Row],[Due Date]]<=1/1/1900,"",+CIB[[#This Row],[Due Date]]) -> 2022-01-04 | D183: 172 | E183: 2022-01-04 | F183: 172 | H183: 116008.2 | I183: =+I182+CIB[[#This Row],[Deposits]]-CIB[[#This Row],[Payments]] -> -486209.86 | J183: Current | K183: =+IF(CIB[[#This Row],[Due Date]]>TD,"Hold","") ->  | L183: =IFERROR(CIB[[#This Row],[Deposits]]-CIB[[#This Row],[Payments]],"") -> -116008.2 | M183: =IFERROR(IF(_xlfn.AGGREGATE(3,5,CIB[[#This Row],[Out]])=1,1,0),"") -> 1
B184: =TEXT(CIB[[#This Row],[Date]],"mmm-yyyy") -> يناير-2022 | C184: =IF(+CIB[[#This Row],[Due Date]]<=1/1/1900,"",+CIB[[#This Row],[Due Date]]) -> 2022-01-10 | D184: 173 | E184: 2022-01-10 | F184: 173 | H184: 499500 | I184: =+I183+CIB[[#This Row],[Deposits]]-CIB[[#This Row],[Payments]] -> -985709.86 | J184: Current | K184: =+IF(CIB[[#This Row],[Due Date]]>TD,"Hold","") ->  | L184: =IFERROR(CIB[[#This Row],[Deposits]]-CIB[[#This Row],[Payments]],"") -> -499500 | M184: =IFERROR(IF(_xlfn.AGGREGATE(3,5,CIB[[#This Row],[Out]])=1,1,0),"") -> 1
B185: =TEXT(CIB[[#This Row],[Date]],"mmm-yyyy") -> يناير-2022 | C185: =IF(+CIB[[#This Row],[Due Date]]<=1/1/1900,"",+CIB[[#This Row],[Due Date]]) -> 2022-01-05 | D185: 174 | E185: 2022-01-05 | F185: 174 | H185: 13224 | I185: =+I184+CIB[[#This Row],[Deposits]]-CIB[[#This Row],[Payments]] -> -998933.86 | J185: Current | K185: =+IF(CIB[[#This Row],[Due Date]]>TD,"Hold","") ->  | L185: =IFERROR(CIB[[#This Row],[Deposits]]-CIB[[#This Row],[Payments]],"") -> -13224 | M185: =IFERROR(IF(_xlfn.AGGREGATE(3,5,CIB[[#This Row],[Out]])=1,1,0),"") -> 1
B186: =TEXT(CIB[[#This Row],[Date]],"mmm-yyyy") -> يناير-2022 | C186: =IF(+CIB[[#This Row],[Due Date]]<=1/1/1900,"",+CIB[[#This Row],[Due Date]]) -> 2022-01-05 | D186: 175 | E186: 2022-01-05 | F186: 175 | H186: 82896.8 | I186: =+I185+CIB[[#This Row],[Deposits]]-CIB[[#This Row],[Payments]] -> -1081830.66 | J186: Current | K186: =+IF(CIB[[#This Row],[Due Date]]>TD,"Hold","") ->  | L186: =IFERROR(CIB[[#This Row],[Deposits]]-CIB[[#This Row],[Payments]],"") -> -82896.8 | M186: =IFERROR(IF(_xlfn.AGGREGATE(3,5,CIB[[#This Row],[Out]])=1,1,0),"") -> 1
B187: =TEXT(CIB[[#This Row],[Date]],"mmm-yyyy") -> يناير-2022 | C187: =IF(+CIB[[#This Row],[Due Date]]<=1/1/1900,"",+CIB[[#This Row],[Due Date]]) -> 2022-01-05 | D187: 176 | E187: 2022-01-05 | F187: 176 | G187: 95460 | I187: =+I186+CIB[[#This Row],[Deposits]]-CIB[[#This Row],[Payments]] -> -986370.66 | J187: Current | K187: =+IF(CIB[[#This Row],[Due Date]]>TD,"Hold","") ->  | L187: =IFERROR(CIB[[#This Row],[Deposits]]-CIB[[#This Row],[Payments]],"") -> 95460 | M187: =IFERROR(IF(_xlfn.AGGREGATE(3,5,CIB[[#This Row],[Out]])=1,1,0),"") -> 1
B188: =TEXT(CIB[[#This Row],[Date]],"mmm-yyyy") -> يناير-2022 | C188: =IF(+CIB[[#This Row],[Due Date]]<=1/1/1900,"",+CIB[[#This Row],[Due Date]]) -> 2022-01-05 | D188: 177 | E188: 2022-01-05 | F188: 177 | G188: 93288 | I188: =+I187+CIB[[#This Row],[Deposits]]-CIB[[#This Row],[Payments]] -> -893082.66 | J188: Current | K188: =+IF(CIB[[#This Row],[Due Date]]>TD,"Hold","") ->  | L188: =IFERROR(CIB[[#This Row],[Deposits]]-CIB[[#This Row],[Payments]],"") -> 93288 | M188: =IFERROR(IF(_xlfn.AGGREGATE(3,5,CIB[[#This Row],[Out]])=1,1,0),"") -> 1
B189: =TEXT(CIB[[#This Row],[Date]],"mmm-yyyy") -> يناير-2022 | C189: =IF(+CIB[[#This Row],[Due Date]]<=1/1/1900,"",+CIB[[#This Row],[Due Date]]) -> 2022-01-05 | D189: 178 | E189: 2022-01-05 | F189: 178 | H189: 90733.5 | I189: =+I188+CIB[[#This Row],[Deposits]]-CIB[[#This Row],[Payments]] -> -983816.16 | J189: Current | K189: =+IF(CIB[[#This Row],[Due Date]]>TD,"Hold","") ->  | L189: =IFERROR(CIB[[#This Row],[Deposits]]-CIB[[#This Row],[Payments]],"") -> -90733.5 | M189: =IFERROR(IF(_xlfn.AGGREGATE(3,5,CIB[[#This Row],[Out]])=1,1,0),"") -> 1
B190: =TEXT(CIB[[#This Row],[Date]],"mmm-yyyy") -> يناير-2022 | C190: =IF(+CIB[[#This Row],[Due Date]]<=1/1/1900,"",+CIB[[#This Row],[Due Date]]) -> 2022-01-05 | D190: 179 | E190: 2022-01-05 | F190: 179 | H190: 56355.29 | I190: =+I189+CIB[[#This Row],[Deposits]]-CIB[[#This Row],[Payments]] -> -1040171.45 | J190: Current | K190: =+IF(CIB[[#This Row],[Due Date]]>TD,"Hold","") ->  | L190: =IFERROR(CIB[[#This Row],[Deposits]]-CIB[[#This Row],[Payments]],"") -> -56355.29 | M190: =IFERROR(IF(_xlfn.AGGREGATE(3,5,CIB[[#This Row],[Out]])=1,1,0),"") -> 1
B191: =TEXT(CIB[[#This Row],[Date]],"mmm-yyyy") -> يناير-2022 | C191: =IF(+CIB[[#This Row],[Due Date]]<=1/1/1900,"",+CIB[[#This Row],[Due Date]]) -> 2022-01-05 | D191: 180 | E191: 2022-01-05 | F191: 180 | H191: 20174.64 | I191: =+I190+CIB[[#This Row],[Deposits]]-CIB[[#This Row],[Payments]] -> -1060346.09 | J191: Current | K191: =+IF(CIB[[#This Row],[Due Date]]>TD,"Hold","") ->  | L191: =IFERROR(CIB[[#This Row],[Deposits]]-CIB[[#This Row],[Payments]],"") -> -20174.64 | M191: =IFERROR(IF(_xlfn.AGGREGATE(3,5,CIB[[#This Row],[Out]])=1,1,0),"") -> 1
B192: =TEXT(CIB[[#This Row],[Date]],"mmm-yyyy") -> يناير-2022 | C192: =IF(+CIB[[#This Row],[Due Date]]<=1/1/1900,"",+CIB[[#This Row],[Due Date]]) -> 2022-01-05 | D192: 181 | E192: 2022-01-05 | F192: 181 | H192: 41603.76 | I192: =+I191+CIB[[#This Row],[Deposits]]-CIB[[#This Row],[Payments]] -> -1101949.85 | J192: Current | K192: =+IF(CIB[[#This Row],[Due Date]]>TD,"Hold","") ->  | L192: =IFERROR(CIB[[#This Row],[Deposits]]-CIB[[#This Row],[Payments]],"") -> -41603.76 | M192: =IFERROR(IF(_xlfn.AGGREGATE(3,5,CIB[[#This Row],[Out]])=1,1,0),"") -> 1
B193: =TEXT(CIB[[#This Row],[Date]],"mmm-yyyy") -> يناير-2022 | C193: =IF(+CIB[[#This Row],[Due Date]]<=1/1/1900,"",+CIB[[#This Row],[Due Date]]) -> 2022-01-05 | D193: 182 | E193: 2022-01-05 | F193: 182 | H193: 74394.02 | I193: =+I192+CIB[[#This Row],[Deposits]]-CIB[[#This Row],[Payments]] -> -1176343.87 | J193: Current | K193: =+IF(CIB[[#This Row],[Due Date]]>TD,"Hold","") ->  | L193: =IFERROR(CIB[[#This Row],[Deposits]]-CIB[[#This Row],[Payments]],"") -> -74394.02 | M193: =IFERROR(IF(_xlfn.AGGREGATE(3,5,CIB[[#This Row],[Out]])=1,1,0),"") -> 1
B194: =TEXT(CIB[[#This Row],[Date]],"mmm-yyyy") -> يناير-2022 | C194: =IF(+CIB[[#This Row],[Due Date]]<=1/1/1900,"",+CIB[[#This Row],[Due Date]]) -> 2022-01-05 | D194: 183 | E194: 2022-01-05 | F194: 183 | H194: 27953.64 | I194: =+I193+CIB[[#This Row],[Deposits]]-CIB[[#This Row],[Payments]] -> -1204297.51 | J194: Current | K194: =+IF(CIB[[#This Row],[Due Date]]>TD,"Hold","") ->  | L194: =IFERROR(CIB[[#This Row],[Deposits]]-CIB[[#This Row],[Payments]],"") -> -27953.64 | M194: =IFERROR(IF(_xlfn.AGGREGATE(3,5,CIB[[#This Row],[Out]])=1,1,0),"") -> 1
B195: =TEXT(CIB[[#This Row],[Date]],"mmm-yyyy") -> يناير-2022 | C195: =IF(+CIB[[#This Row],[Due Date]]<=1/1/1900,"",+CIB[[#This Row],[Due Date]]) -> 2022-01-05 | D195: 184 | E195: 2022-01-05 | F195: 184 | H195: 49460 | I195: =+I194+CIB[[#This Row],[Deposits]]-CIB[[#This Row],[Payments]] -> -1253757.51 | J195: Current | K195: =+IF(CIB[[#This Row],[Due Date]]>TD,"Hold","") ->  | L195: =IFERROR(CIB[[#This Row],[Deposits]]-CIB[[#This Row],[Payments]],"") -> -49460 | M195: =IFERROR(IF(_xlfn.AGGREGATE(3,5,CIB[[#This Row],[Out]])=1,1,0),"") -> 1
B196: =TEXT(CIB[[#This Row],[Date]],"mmm-yyyy") -> يناير-2022 | C196: =IF(+CIB[[#This Row],[Due Date]]<=1/1/1900,"",+CIB[[#This Row],[Due Date]]) -> 2022-01-05 | D196: 185 | E196: 2022-01-05 | F196: 185 | G196: 29429.82 | I196: =+I195+CIB[[#This Row],[Deposits]]-CIB[[#This Row],[Payments]] -> -1224327.69 | J196: Current | K196: =+IF(CIB[[#This Row],[Due Date]]>TD,"Hold","") ->  | L196: =IFERROR(CIB[[#This Row],[Deposits]]-CIB[[#This Row],[Payments]],"") -> 29429.82 | M196: =IFERROR(IF(_xlfn.AGGREGATE(3,5,CIB[[#This Row],[Out]])=1,1,0),"") -> 1
B197: =TEXT(CIB[[#This Row],[Date]],"mmm-yyyy") -> يناير-2022 | C197: =IF(+CIB[[#This Row],[Due Date]]<=1/1/1900,"",+CIB[[#This Row],[Due Date]]) -> 2022-01-05 | D197: 186 | E197: 2022-01-05 | F197: 186 | G197: 5.46 | I197: =+I196+CIB[[#This Row],[Deposits]]-CIB[[#This Row],[Payments]] -> -1224322.23 | J197: Current | K197: =+IF(CIB[[#This Row],[Due Date]]>TD,"Hold","") ->  | L197: =IFERROR(CIB[[#This Row],[Deposits]]-CIB[[#This Row],[Payments]],"") -> 5.46 | M197: =IFERROR(IF(_xlfn.AGGREGATE(3,5,CIB[[#This Row],[Out]])=1,1,0),"") -> 1
B198: =TEXT(CIB[[#This Row],[Date]],"mmm-yyyy") -> يناير-2022 | C198: =IF(+CIB[[#This Row],[Due Date]]<=1/1/1900,"",+CIB[[#This Row],[Due Date]]) -> 2022-01-05 | D198: 187 | E198: 2022-01-05 | F198: 187 | G198: 1200 | I198: =+I197+CIB[[#This Row],[Deposits]]-CIB[[#This Row],[Payments]] -> -1223122.23 | J198: Current | K198: =+IF(CIB[[#This Row],[Due Date]]>TD,"Hold","") ->  | L198: =IFERROR(CIB[[#This Row],[Deposits]]-CIB[[#This Row],[Payments]],"") -> 1200 | M198: =IFERROR(IF(_xlfn.AGGREGATE(3,5,CIB[[#This Row],[Out]])=1,1,0),"") -> 1
B199: =TEXT(CIB[[#This Row],[Date]],"mmm-yyyy") -> يناير-2022 | C199: =IF(+CIB[[#This Row],[Due Date]]<=1/1/1900,"",+CIB[[#This Row],[Due Date]]) -> 2022-01-05 | D199: 188 | E199: 2022-01-05 | F199: 188 | G199: 29832 | I199: =+I198+CIB[[#This Row],[Deposits]]-CIB[[#This Row],[Payments]] -> -1193290.23 | J199: Current | K199: =+IF(CIB[[#This Row],[Due Date]]>TD,"Hold","") ->  | L199: =IFERROR(CIB[[#This Row],[Deposits]]-CIB[[#This Row],[Payments]],"") -> 29832 | M199: =IFERROR(IF(_xlfn.AGGREGATE(3,5,CIB[[#This Row],[Out]])=1,1,0),"") -> 1
B200: =TEXT(CIB[[#This Row],[Date]],"mmm-yyyy") -> يناير-2022 | C200: =IF(+CIB[[#This Row],[Due Date]]<=1/1/1900,"",+CIB[[#This Row],[Due Date]]) -> 2022-01-05 | D200: 189 | E200: 2022-01-05 | F200: 189 | G200: 2000 | I200: =+I199+CIB[[#This Row],[Deposits]]-CIB[[#This Row],[Payments]] -> -1191290.23 | J200: Current | K200: =+IF(CIB[[#This Row],[Due Date]]>TD,"Hold","") ->  | L200: =IFERROR(CIB[[#This Row],[Deposits]]-CIB[[#This Row],[Payments]],"") -> 2000 | M200: =IFERROR(IF(_xlfn.AGGREGATE(3,5,CIB[[#This Row],[Out]])=1,1,0),"") -> 1
B201: =TEXT(CIB[[#This Row],[Date]],"mmm-yyyy") -> يناير-2022 | C201: =IF(+CIB[[#This Row],[Due Date]]<=1/1/1900,"",+CIB[[#This Row],[Due Date]]) -> 2022-01-05 | D201: 190 | E201: 2022-01-05 | F201: 190 | G201: 17790.74 | I201: =+I200+CIB[[#This Row],[Deposits]]-CIB[[#This Row],[Payments]] -> -1173499.49 | J201: Current | K201: =+IF(CIB[[#This Row],[Due Date]]>TD,"Hold","") ->  | L201: =IFERROR(CIB[[#This Row],[Deposits]]-CIB[[#This Row],[Payments]],"") -> 17790.74 | M201: =IFERROR(IF(_xlfn.AGGREGATE(3,5,CIB[[#This Row],[Out]])=1,1,0),"") -> 1
B202: =TEXT(CIB[[#This Row],[Date]],"mmm-yyyy") -> يناير-2022 | C202: =IF(+CIB[[#This Row],[Due Date]]<=1/1/1900,"",+CIB[[#This Row],[Due Date]]) -> 2022-01-05 | D202: 191 | E202: 2022-01-05 | F202: 191 | G202: 2326.5 | I202: =+I201+CIB[[#This Row],[Deposits]]-CIB[[#This Row],[Payments]] -> -1171172.99 | J202: Current | K202: =+IF(CIB[[#This Row],[Due Date]]>TD,"Hold","") ->  | L202: =IFERROR(CIB[[#This Row],[Deposits]]-CIB[[#This Row],[Payments]],"") -> 2326.5 | M202: =IFERROR(IF(_xlfn.AGGREGATE(3,5,CIB[[#This Row],[Out]])=1,1,0),"") -> 1
B203: =TEXT(CIB[[#This Row],[Date]],"mmm-yyyy") -> يناير-2022 | C203: =IF(+CIB[[#This Row],[Due Date]]<=1/1/1900,"",+CIB[[#This Row],[Due Date]]) -> 2022-01-05 | D203: 192 | E203: 2022-01-05 | F203: 192 | G203: 1575 | I203: =+I202+CIB[[#This Row],[Deposits]]-CIB[[#This Row],[Payments]] -> -1169597.99 | J203: Current | K203: =+IF(CIB[[#This Row],[Due Date]]>TD,"Hold","") ->  | L203: =IFERROR(CIB[[#This Row],[Deposits]]-CIB[[#This Row],[Payments]],"") -> 1575 | M203: =IFERROR(IF(_xlfn.AGGREGATE(3,5,CIB[[#This Row],[Out]])=1,1,0),"") -> 1
... 3889 more rows
